{"text_format":"1","workbook":"xlsx","n_sheets":5,"sheets":["титульник ","сводные данные","План","Кабинеты","Start"],"not_rendered":{"charts":0,"images":0,"macros":1,"external_links":0,"defined_names":0,"comments":0,"pivot_tables":0},"unopened":[],"bounds":{"document_bytes":16777216,"sheet_cells":100000,"rows_first":2000,"rows_last":500,"rows_between":2000,"halvings":0,"cell_chars":16384,"cell_head_chars":4096},"cells_cut":0,"cells_raw":0,"read":"whole","date_system":"1900"}

{"sheet":"титульник ","index":0,"n_rows":33,"n_cols":45,"rows_kept":33,"cut":false,"hidden":false,"merged":[[13,0,13,12],[8,0,9,11],[21,34,21,61],[17,14,18,61],[19,14,19,18],[19,20,19,61],[0,0,0,11],[1,0,2,11],[4,0,5,11],[4,14,5,61],[6,0,7,11],[6,14,7,61],[32,34,32,36],[10,14,13,61],[14,14,15,61],[27,34,27,43],[27,44,27,47],[20,14,20,19],[20,20,20,60],[21,14,21,27],[21,30,21,33],[29,34,29,61],[30,34,31,61],[31,14,31,33],[23,14,23,19],[23,20,23,61],[25,14,25,19],[25,20,25,31],[27,14,27,25],[27,27,27,31],[32,8,32,9],[32,14,32,24],[28,7,29,8],[29,14,29,33],[32,25,32,26],[32,27,32,31],[32,32,32,33]]}
["Утверждаю"]
["Директор ОГБПОУ \"ДМК\""]
[]
[]
["И.А.Казаченко",null,null,null,null,null,null,null,null,null,null,null,null,null,"УЧЕБНЫЙ ПЛАН"]
[]
[null,null,null,null,null,null,null,null,null,null,null,null,null,null," программы подготовки специалистов среднего звена"]
[]
["Приказ № 121 - у от 30.06.2023"]
[]
[null,null,null,null,null,null,null,null,null,null,null,null,null,null,"Областное государственное бюджетное  профессиональное образовательное учреждение \"Димитровградский музыкальный колледж\""]
[]
[]
["Рассмотрено Педагогическим Советом  Протокол № 08  от 30.06.2023"]
[null,null,null,null,null,null,null,null,null,null,null,null,null,null,"наименование образовательного учреждения (организации)"]
[]
[]
[null,null,null,null,null,null,null,null,null,null,null,null,null,null,"по специальности среднего профессионального образования"]
[]
[null,null,null,null,null,null,null,null,null,null,null,null,null,null,"53.02.03",null,null,null,null,null,"Инструментальное исполнительство (по видам инструментов) Фортепиано"]
[null,null,null,null,null,null,null,null,null,null,null,null,null,null,"код",null,null,null,null,null,"наименование специальности"]
[null,null,null,null,null,null,null,null,null,null,null,null,null,null,"по программе углубленной подготовки",null,null,null,null,null,null,null,null,null,null,null,null,null,null,null,"   на базе",null,null,null,"основного общего образования"]
[]
[null,null,null,null,null,null,null,null,null,null,null,null,null,null,"квалификация",null,null,null,null,null,"Артист, преподаватель, концертмейстер "]
[]
[null,null,null,null,null,null,null,null,null,null,null,null,null,null,"форма обучения",null,null,null,null,null,"Очная"]
[]
[null,null,null,null,null,null,null,null,null,null,null,null,null,null,"нормативный срок освоения ППССЗ  ",null,null,null,null,null,null,null,null,null,null,null,null,"3г 10м",null,null,null,null,null,null,"год начала подготовки по УП",null,null,null,null,null,null,null,null,null,2023]
[]
[null,null,null,null,null,null,null,null,null,null,null,null,null,null,"профиль получаемого профессионального образования",null,null,null,null,null,null,null,null,null,null,null,null,null,null,null,null,null,null,null,"Искусство и культура 53.00.00 Музыкальное искусство"]
[null,null,null,null,null,null,null,null,null,null,null,null,null,null,null,null,null,null,null,null,null,null,null,null,null,null,null,null,null,null,null,null,null,null,"при реализации программы среднего (полного) общего образования"]
[]
[null,null,null,null,null,null,null,null,null,null,null,null,null,null,"Приказ об утверждении ФГОС",null,null,null,null,null,null,null,null,null,null,"от ",null,"2021-05-17",null,null,null,null,"     № ",null,253]

{"sheet":"сводные данные","index":1,"n_rows":10,"n_cols":55,"rows_kept":10,"cut":false,"hidden":false,"merged":[[9,51,9,53],[9,54,9,56],[9,45,9,47],[9,48,9,50],[9,25,9,27],[9,31,9,33],[9,34,9,35],[9,36,9,37],[9,28,9,30],[9,41,9,42],[9,13,9,15],[9,16,9,18],[9,19,9,21],[9,22,9,24],[9,1,9,3],[9,4,9,6],[9,7,9,9],[9,10,9,12],[8,45,8,47],[8,13,8,15],[8,16,8,18],[8,19,8,21],[8,22,8,24],[8,1,8,3],[8,4,8,6],[8,7,8,9],[8,10,8,12],[9,38,9,40],[9,43,9,44],[8,48,8,50],[8,51,8,53],[8,54,8,56],[8,25,8,27],[8,31,8,33],[8,34,8,35],[8,36,8,37],[8,28,8,30],[8,38,8,40],[8,41,8,42],[8,43,8,44],[6,36,6,37],[7,25,7,27],[7,31,7,33],[7,34,7,35],[7,36,7,37],[6,28,6,30],[6,51,6,53],[6,54,6,56],[6,38,6,40],[6,41,6,42],[6,43,6,44],[6,45,6,47],[6,48,6,50],[7,1,7,3],[7,4,7,6],[7,7,7,9],[7,10,7,12],[6,22,6,24],[6,1,6,3],[6,4,6,6],[6,7,6,9],[6,10,6,12],[5,51,5,53],[5,54,5,56],[5,38,5,40],[5,41,5,42],[5,43,5,44],[5,45,5,47],[7,13,7,15],[7,16,7,18],[7,19,7,21],[7,22,7,24],[6,13,6,15],[6,16,6,18],[6,19,6,21],[7,48,7,50],[7,28,7,30],[7,51,7,53],[7,54,7,56],[7,38,7,40],[7,41,7,42],[7,43,7,44],[7,45,7,47],[6,25,6,27],[6,31,6,33],[6,34,6,35],[5,36,5,37],[4,28,4,30],[4,13,4,15],[4,16,4,18],[4,19,4,21],[5,48,5,50],[5,28,5,30],[5,1,5,3],[5,4,5,6],[5,7,5,9],[4,10,4,12],[4,31,4,33],[4,34,4,35],[5,13,5,15],[5,16,5,18],[5,19,5,21],[5,22,5,24],[4,22,4,24],[5,10,5,12],[5,25,5,27],[5,31,5,33],[5,34,5,35],[1,51,3,53],[1,54,3,56],[2,45,3,47],[2,48,3,50],[2,31,2,37],[3,43,3,44],[4,51,4,53],[4,54,4,56],[4,38,4,40],[4,41,4,42],[4,43,4,44],[4,45,4,47],[4,48,4,50],[4,36,4,37],[0,0,0,48],[1,0,4,0],[1,1,2,18],[1,19,2,27],[1,28,1,44],[1,45,1,50],[3,1,3,6],[3,7,3,12],[3,13,3,18],[3,19,3,21],[2,28,2,30],[3,34,3,35],[3,31,3,33],[3,41,3,42],[3,28,3,30],[2,38,2,44],[3,22,3,24],[3,25,3,27],[4,25,4,27],[3,36,3,37],[3,38,3,40],[4,1,4,3],[4,4,4,6],[4,7,4,9]]}
["2 Сводные данные по бюджету времени"]
["Курс","Обучение по дисциплинам и междисциплинарным курсам",null,null,null,null,null,null,null,null,null,null,null,null,null,null,null,null,null,"Промежуточная аттестация",null,null,null,null,null,null,null,null,"Практики",null,null,null,null,null,null,null,null,null,null,null,null,null,null,null,null,"ГИА",null,null,null,null,null,"Каникулы",null,null,"Всего"]
[null,null,null,null,null,null,null,null,null,null,null,null,null,null,null,null,null,null,null,null,null,null,null,null,null,null,null,null,"Учебная практика",null,null,"Производственная практика (по профилю специальности)",null,null,null,null,null,null,"Производственная практика (преддипломная)",null,null,null,null,null,null,"Подго-\r\nтовка",null,null,"Прове-\r\nдение"]
[null,"Всего",null,null,null,null,null,"1 сем",null,null,null,null,null,"2 сем",null,null,null,null,null,"Всего",null,null,"1 сем",null,null,"2 сем",null,null,"Всего",null,null,"Всего",null,null,"1 сем",null,"2 сем",null,"Всего",null,null,"1 сем",null,"2 сем"]
[null,"нед.",null,null,"час.",null,null,"нед.",null,null,"час.",null,null,"нед.",null,null,"час.",null,null,"нед.",null,null,"нед.",null,null,"нед.",null,null,"нед.",null,null,"нед.",null,null,"нед.",null,"нед.",null,"нед.",null,null,"нед.",null,"нед.",null,"нед.",null,null,"нед.",null,null,"нед.",null,null,"нед."]
["I","36 ",null,null,"1945/1296",null,null,"16 ",null,null,"864/576",null,null,"20 ",null,null,"1081/720",null,null,"4 ",null,null,"2 ",null,null,"2 ",null,null,null,null,null,"1 ",null,null,null,null,"1 ",null,null,null,null,null,null,null,null,null,null,null,null,null,null,"2 ",null,null,"43 "]
["II","36 ",null,null,"1942/1296",null,null,"16 ",null,null,"862/576",null,null,"20 ",null,null,"1080/720",null,null,"4 ",null,null,"2 ",null,null,"2 ",null,null,null,null,null,"2 ",null,null,null,null,"2 ",null,null,null,null,null,null,null,null,null,null,null,null,null,null,"11 ",null,null,"53 "]
["III","36 ",null,null,"1945/1296",null,null,"16 ",null,null,"864/576",null,null,"20 ",null,null,"1081/720",null,null,"4 ",null,null,"2 ",null,null,"2 ",null,null,null,null,null,"2 ",null,null,null,null,"2 ",null,null,null,null,null,null,null,null,null,null,null,null,null,null,"10 ",null,null,"52 "]
["IV","35 ",null,null,"1890/1260",null,null,"16 ",null,null,"864/576",null,null,"19 ",null,null,"1026/684",null,null,"1 ",null,null,"1 ",null,null,null,null,null,null,null,null,null,null,null,null,null,null,null,"1 ",null,null,"1 ",null,null,null,"1 ",null,null,"3 ",null,null,"10 ",null,null,"51 "]
["Всего","143 ",null,null,"7722/5148",null,null,null,null,null,"3454/2304",null,null,null,null,null,"4268/2844",null,null,"13 ",null,null,null,null,null,null,null,null,19,null,null,"5 ",null,null,null,null,null,null,"1 ",null,null,null,null,null,null,"1 ",null,null,"3 ",null,null,"33 ",null,null,"199 "]

{"sheet":"План","index":2,"n_rows":86,"n_cols":134,"rows_kept":86,"cut":false,"hidden":false,"merged":[[2,62,2,68],[2,8,5,8],[0,0,5,0],[0,1,5,1],[0,3,1,9],[0,10,1,19],[2,15,2,19],[2,3,5,3],[2,4,5,4],[2,5,5,5],[2,6,5,6],[2,7,5,7],[2,9,5,9],[2,11,5,11],[2,13,5,13],[3,15,5,15],[3,16,3,19],[4,16,5,16],[4,17,5,17],[4,18,5,18],[4,19,5,19],[0,20,0,131],[1,20,1,33],[1,34,1,47],[2,69,2,75],[2,90,2,96],[2,76,2,82],[2,83,2,89],[2,97,2,103],[2,118,2,124],[2,125,2,131],[2,104,2,110],[2,111,2,117],[1,48,1,61],[1,62,1,75],[1,76,1,89],[1,90,1,103],[1,104,1,117],[1,118,1,131],[4,27,5,27],[4,28,5,28],[2,41,2,47],[2,48,2,54],[3,76,3,82],[3,83,3,89],[3,90,3,96],[3,97,3,103],[3,104,3,110],[3,111,3,117],[5,39,5,39],[5,40,5,40],[4,41,5,41],[4,42,5,42],[4,50,5,50],[4,51,4,54],[5,53,5,53],[5,54,5,54],[4,21,5,21],[4,29,5,29],[4,30,4,33],[4,37,4,40],[2,55,2,61],[3,20,3,26],[3,27,3,33],[4,20,5,20],[4,36,5,36],[4,35,5,35],[5,32,5,32],[4,34,5,34],[5,33,5,33],[4,22,5,22],[4,23,4,26],[5,25,5,25],[5,26,5,26],[2,34,2,40],[2,20,2,26],[2,27,2,33],[3,34,3,40],[3,41,3,47],[3,48,3,54],[3,55,3,61],[4,71,5,71],[4,72,4,75],[5,74,5,74],[5,75,5,75],[4,76,5,76],[4,77,5,77],[4,78,5,78],[4,79,4,82],[5,81,5,81],[5,82,5,82],[4,83,5,83],[4,84,5,84],[4,85,5,85],[4,86,4,89],[5,88,5,88],[3,118,3,124],[3,125,3,131],[3,62,3,68],[3,69,3,75],[4,69,5,69],[4,70,5,70],[5,89,5,89],[4,90,5,90],[4,91,5,91],[4,92,5,92],[4,93,4,96],[5,93,5,93],[5,94,5,94],[5,95,5,95],[5,96,5,96],[4,97,5,97],[4,98,5,98],[4,99,5,99],[4,100,4,103],[4,43,5,43],[4,44,4,47],[5,46,5,46],[5,47,5,47],[4,48,5,48],[4,49,5,49],[4,55,5,55],[4,56,5,56],[4,57,5,57],[4,58,4,61],[5,60,5,60],[5,61,5,61],[4,62,5,62],[4,63,5,63],[4,64,5,64],[4,65,4,68],[5,67,5,67],[5,68,5,68],[5,100,5,100],[5,101,5,101],[5,102,5,102],[5,103,5,103],[4,104,5,104],[4,105,5,105],[4,106,5,106],[4,107,4,110],[5,107,5,107],[5,108,5,108],[5,109,5,109],[5,110,5,110],[4,111,5,111],[4,112,5,112],[4,113,5,113],[4,114,4,117],[5,114,5,114],[5,115,5,115],[5,116,5,116],[5,117,5,117],[4,132,5,132],[4,133,5,133],[4,118,5,118],[4,119,5,119],[4,120,5,120],[4,121,4,124],[5,121,5,121],[5,122,5,122],[5,123,5,123],[5,124,5,124],[4,125,5,125],[4,126,5,126],[4,127,5,127],[4,128,4,131],[5,128,5,128],[5,129,5,129],[5,130,5,130],[5,131,5,131],[71,3,71,11],[71,17,71,19],[71,20,71,21],[71,27,71,28],[71,34,71,35],[71,83,71,84],[71,87,71,89],[71,41,71,42],[71,125,71,126],[71,129,71,131],[71,104,71,105],[71,108,71,110],[71,111,71,112],[71,115,71,117],[75,3,75,15],[75,17,75,19],[71,90,71,91],[71,94,71,96],[71,76,71,77],[71,80,71,82],[72,17,72,19],[73,17,73,19],[74,17,74,19],[75,90,75,92],[75,94,75,96],[71,118,71,119],[71,122,71,124],[75,97,75,99],[75,101,75,103],[75,76,75,78],[75,80,75,82],[71,97,71,98],[71,101,71,103],[75,125,75,127],[75,129,75,131],[75,104,75,106],[75,108,75,110],[75,111,75,113],[75,115,75,117],[75,118,75,120],[75,122,75,124],[76,83,76,85],[76,87,76,88],[76,125,76,127],[76,129,76,130],[75,83,75,85],[75,87,75,89],[76,104,76,106],[76,108,76,109],[76,111,76,113],[76,115,76,116],[76,118,76,120],[76,122,76,123],[76,97,76,99],[76,101,76,102],[78,3,78,15],[78,17,78,19],[76,90,76,92],[76,94,76,95],[78,76,78,78],[78,80,78,81],[76,73,76,74],[76,76,76,78],[76,80,76,81],[76,3,76,15],[76,17,76,19],[77,3,77,15],[77,17,77,19],[77,73,77,74],[78,97,78,99],[78,101,78,102],[78,73,78,74],[78,118,78,120],[78,122,78,123],[78,83,78,85],[78,87,78,88],[78,90,78,92],[78,94,78,95],[78,125,78,127],[78,129,78,130],[78,104,78,106],[78,108,78,109],[78,111,78,113],[78,115,78,116],[79,101,79,102],[79,125,79,127],[79,129,79,130],[79,104,79,106],[79,108,79,109],[79,111,79,113],[79,115,79,116],[79,118,79,120],[79,122,79,123],[79,3,79,15],[79,17,79,19],[79,97,79,99],[79,73,79,74],[79,76,79,78],[79,80,79,81],[79,83,79,85],[79,87,79,88],[79,90,79,92],[79,94,79,95],[81,0,85,0],[81,1,81,19],[85,1,85,19],[81,90,81,96],[85,20,85,26],[82,1,82,19],[82,83,82,89],[85,118,85,124],[85,27,85,33],[82,90,82,96],[81,97,81,103],[81,104,81,110],[83,90,83,96],[84,111,84,117],[84,118,84,124],[83,1,83,19],[84,1,84,19],[84,20,84,26],[84,27,84,33],[84,69,84,75],[83,83,83,89],[83,97,83,103],[84,90,84,96],[84,62,84,68],[81,132,85,133],[81,111,81,117],[81,118,81,124],[82,111,82,117],[82,118,82,124],[81,76,81,82],[82,97,82,103],[82,104,82,110],[82,76,82,82],[83,111,83,117],[83,118,83,124],[85,83,85,89],[82,125,82,131],[81,83,81,89],[83,125,83,131],[84,125,84,131],[81,125,81,131],[85,34,85,40],[85,41,85,47],[85,48,85,54],[85,55,85,61],[84,104,84,110],[84,76,84,82],[84,83,84,89],[0,132,3,133],[0,2,5,2],[85,125,85,131],[85,90,85,96],[85,97,85,103],[85,104,85,110],[85,111,85,117],[85,62,85,68],[85,69,85,75],[85,76,85,82],[84,34,84,40],[84,41,84,47],[84,48,84,54],[83,104,83,110],[84,55,84,61],[83,76,83,82],[84,97,84,103],[94,64,94,70],[94,71,94,77],[94,22,94,28],[94,29,94,35],[94,36,94,42],[94,43,94,49],[94,50,94,56],[94,57,94,63],[92,22,92,28],[92,29,92,35],[92,36,92,42],[92,43,92,49],[92,50,92,56],[92,57,92,63],[92,64,92,70],[92,71,92,77],[93,22,93,28],[93,29,93,35],[93,36,93,42],[93,43,93,49],[93,50,93,56],[93,57,93,63],[93,64,93,70],[93,71,93,77]]}
["Индекс","Наименование циклов, разделов,\r\nдисциплин, профессиональных модулей, МДК, практик","Групповые, мелкогрупповые, индивидуальные формы занятий","Формы промежуточной аттестации",null,null,null,null,null,null,"Учебная нагрузка обучающихся, ч.",null,null,null,null,null,null,null,null,null,"Распределение по курсам и семестрам",null,null,null,null,null,null,null,null,null,null,null,null,null,null,null,null,null,null,null,null,null,null,null,null,null,null,null,null,null,null,null,null,null,null,null,null,null,null,null,null,null,null,null,null,null,null,null,null,null,null,null,null,null,null,null,null,null,null,null,null,null,null,null,null,null,null,null,null,null,null,null,null,null,null,null,null,null,null,null,null,null,null,null,null,null,null,null,null,null,null,null,null,null,null,null,null,null,null,null,null,null,null,null,null,null,null,null,null,null,null,null,"Максимальная учебная нагрузка"]
[null,null,null,null,null,null,null,null,null,null,null,null,null,null,null,null,null,null,null,null,"Курс 1",null,null,null,null,null,null,null,null,null,null,null,null,null,"Курс 2",null,null,null,null,null,null,null,null,null,null,null,null,null,"Курс 3",null,null,null,null,null,null,null,null,null,null,null,null,null,"Курс 4",null,null,null,null,null,null,null,null,null,null,null,null,null,"Курс 5",null,null,null,null,null,null,null,null,null,null,null,null,null,"Курс 6",null,null,null,null,null,null,null,null,null,null,null,null,null,"Курс 7",null,null,null,null,null,null,null,null,null,null,null,null,null,"Курс 8"]
[null,null,null,"Экзамены","Зачеты","Диффер. зачеты","Курсовые проекты (работы)","Итоговые письм. КР","Домашние КР","Другие формы контроля",null,"Максимальная",null,"Самостоятельная",null,"Обязательная",null,null,null,null,"Семестр 1",null,null,null,null,null,null,"Семестр 2",null,null,null,null,null,null,"Семестр 3",null,null,null,null,null,null,"Семестр 4",null,null,null,null,null,null,"Семестр 5",null,null,null,null,null,null,"Семестр 6",null,null,null,null,null,null,"Семестр 7",null,null,null,null,null,null,"Семестр 8",null,null,null,null,null,null,"Семестр 9",null,null,null,null,null,null,"Семестр A",null,null,null,null,null,null,"Семестр B",null,null,null,null,null,null,"Семестр C",null,null,null,null,null,null,"Семестр D",null,null,null,null,null,null,"Семестр E",null,null,null,null,null,null,"Семестр F",null,null,null,null,null,null,"Семестр G"]
[null,null,null,null,null,null,null,null,null,null,null,null,null,null,null,"Всего","в том числе",null,null,null,"26  нед",null,null,null,null,null,null,"26  нед",null,null,null,null,null,null,"26  нед",null,null,null,null,null,null,"26  нед",null,null,null,null,null,null,"26  нед",null,null,null,null,null,null,"26  нед",null,null,null,null,null,null,"26  нед",null,null,null,null,null,null,"26  нед",null,null,null,null,null,null,"26  нед",null,null,null,null,null,null,"26  нед",null,null,null,null,null,null,"26  нед",null,null,null,null,null,null,"26  нед",null,null,null,null,null,null,"26  нед",null,null,null,null,null,null,"26  нед",null,null,null,null,null,null," нед",null,null,null,null,null,null," нед"]
[null,null,null,null,null,null,null,null,null,null,null,null,null,null,null,null,"Теор. обучение","Лаб. и пр. занятия",null,"Курс. проект.","Максим.","Самост.","Всего","в том числе",null,null,null,"Максим.","Самост.","Всего","в том числе",null,null,null,"Максим.","Самост.","Всего","в том числе",null,null,null,"Максим.","Самост.","Всего","в том числе",null,null,null,"Максим.","Самост.","Всего","в том числе",null,null,null,"Максим.","Самост.","Всего","в том числе",null,null,null,"Максим.","Самост.","Всего","в том числе",null,null,null,"Максим.","Самост.","Всего","в том числе",null,null,null,"Максим.","Самост.","Всего","в том числе",null,null,null,"Максим.","Самост.","Всего","в том числе",null,null,null,"Максим.","Самост.","Всего","в том числе",null,null,null,"Максим.","Самост.","Всего","в том числе",null,null,null,"Максим.","Самост.","Всего","в том числе",null,null,null,"Максим.","Самост.","Всего","в том числе",null,null,null,"Максим.","Самост.","Всего","в том числе",null,null,null,"Максим.","Самост.","Всего","в том числе",null,null,null,"Обяз. часть","Вар. часть"]
[null,null,null,null,null,null,null,null,null,null,null,null,null,null,null,null,null,null,null,null,null,null,null,"Теор. обучение","Лаб. и пр. занятия","Лаб. занятия","Курс. проект.",null,null,null,"Теор. обучение","Лаб. и пр. занятия","Лаб. занятия","Курс. проект.",null,null,null,"Теор. обучение","Лаб. и пр. занятия","Лаб. занятия","Курс. проект.",null,null,null,"Теор. обучение","Лаб. и пр. занятия","Лаб. занятия","Курс. проект.",null,null,null,"Теор. обучение","Лаб. и пр. занятия","Лаб. занятия","Курс. проект.",null,null,null,"Теор. обучение","Лаб. и пр. занятия","Лаб. занятия","Курс. проект.",null,null,null,"Теор. обучение","Лаб. и пр. занятия","Лаб. занятия","Курс. проект.",null,null,null,"Теор. обучение","Лаб. и пр. занятия","Лаб. занятия","Курс. проект.",null,null,null,"Теор. обучение","Лаб. и пр. занятия","Лаб. занятия","Курс. проект.",null,null,null,"Теор. обучение","Лаб. и пр. занятия","Лаб. занятия","Курс. проект.",null,null,null,"Теор. обучение","Лаб. и пр. занятия","Лаб. занятия","Курс. проект.",null,null,null,"Теор. обучение","Лаб. и пр. занятия","Лаб. занятия","Курс. проект.",null,null,null,"Теор. обучение","Лаб. и пр. занятия","Лаб. занятия","Курс. проект.",null,null,null,"Теор. обучение","Лаб. и пр. занятия","Лаб. занятия","Курс. проект.",null,null,null,"Теор. обучение","Лаб. и пр. занятия","Лаб. занятия","Курс. проект.",null,null,null,"Теор. обучение","Лаб. и пр. занятия","Лаб. занятия","Курс. проект."]
["1","2",3,4,5,6,"6","7","8",7,"10",8,"12",9,"14",10,11,12,"18",13,"20",14,15,16,17,"25",18,"27",19,20,21,22,"32",23,"34",24,25,26,27,"39",28,"41",29,30,31,32,"46",33,"48",34,35,36,37,"53",38,"55",39,40,41,42,"60",43,"62",44,45,46,47,"67",48,"69",49,50,51,52,"74",53,"76","77","78","79","80","81","82","83","84","85","86","87","88","89","90","91","92","93","94","95","96","97","98","99","100","101","102","103","104","105","106","107","108","109","110","111","112","113","114","115","116","117","118","119","120","121","122","123","124","125","126","127","128","129","130","131",54,55]
[null,"час/нед",null,null,null,null,null,null,null,null,null,null,null,null,null,null,null,null,null,null,31.5,null,{"$f":"W9/16","v":21},null,null,null,null,31.5,null,{"$f":"AD9/20","v":21},null,null,null,null,22.5,null,{"$f":"AK9/16","v":15},null,null,null,null,22.5,null,{"$f":"AR9/20","v":15},null,null,null,null,4.5,null,{"$f":"AY9/16","v":3},null,null,null,null,4.5,null,{"$f":"BF9/20","v":3},null,null,null,null,null,null,{"$f":"BM9/16","v":0},null,null,null,null,null,null,{"$f":"BT9/19","v":0},null,null,null,null,"NaN",null,"NaN",null,null,null,null,"NaN",null,"NaN",null,null,null,null,"NaN",null,"NaN",null,null,null,null,"NaN",null,"NaN",null,null,null,null,"NaN",null,"NaN",null,null,null,null,"NaN",null,"NaN",null,null,null,null,"NaN",null,"NaN",null,null,null,null,"NaN",null,"NaN"]
["ОУЦ.00","Общеобразовательный учебный цикл",null,3,4,6,null,null,null,14,null,2106,0,702,0,1404,1276,128,null,null,504,168,336,320,16,null,0,null,210,420,380,40,null,0,null,120,240,208,32,null,0,null,150,300,260,40,null,0,null,{"$f":"AX10+AX24","v":24},{"$f":"AY10+AY24","v":48},{"$f":"AZ10+AZ24","v":48},{"$f":"BA10+BA24","v":0},null,{"$f":"BC10+BC24","v":0},null,{"$f":"BE10+BE24","v":30},{"$f":"BF10+BF24","v":60},{"$f":"BG10+BG24","v":60},{"$f":"BH10+BH24","v":0},null,{"$f":"BJ10+BJ24","v":0},null,{"$f":"BL10+BL24","v":0},{"$f":"BM10+BM24","v":0},{"$f":"BN10+BN24","v":0},{"$f":"BO10+BO24","v":0},null,{"$f":"BQ10+BQ24","v":0},null,{"$f":"BS10+BS24","v":0},{"$f":"BT10+BT24","v":0},{"$f":"BU10+BU24","v":0},{"$f":"BV10+BV24","v":0},null,{"$f":"BX10+BX24","v":0},null,null,null,null,null,null,null,null,null,null,null,null,null,null,null,null,null,null,null,null,null,null,null,null,null,null,null,null,null,null,null,null,null,null,null,null,null,null,null,null,null,null,null,null,null,null,null,null,null,null,null,null,null,null,null,null,1404,{"$f":"ED10+ED24","v":0}]
["ОУП.00","Обязательный учебные предметы",null,3,4,6,{"$error":"#REF!"},{"$error":"#REF!"},{"$error":"#REF!"},14,null,1134,0,378,0,756,628,128,null,null,264,88,176,160,16,0,0,330,110,220,180,40,0,0,240,80,160,128,32,0,0,300,100,200,160,40,0,0,{"$f":"SUM(AW11:AW19)","v":0},{"$f":"SUM(AX11:AX22)","v":24},48,48,0,0,0,90,30,60,60,0,0,0,0,0,0,0,0,0,0,0,0,0,0,0,0,0,0,0,0,0,0,0,0,0,0,{"$f":"SUM(CH11:CH22)","v":0},0,0,0,0,0,0,0,0,0,0,0,0,0,0,0,0,0,0,0,0,0,0,0,0,0,0,0,0,0,0,0,0,0,0,0,0,0,0,0,0,0,0,0,0,0,0,{"$f":"SUM(EC11:EC19)","v":756},0]
["ОУП.01"," Русский язык","гр",4,null,null,null,null,null,123,null,{"$f":"N11+P11","v":108},null,{"$f":"V11+AC11+AJ11+AQ11+AX11+BE11+BL11+BS11","v":36},null,{"$f":"W11+AD11+AK11+AR11+AY11+BF11+BM11+BT11","v":72},72,0,null,null,24,8,16,16,null,null,null,30,10,20,20,null,null,null,24,8,16,16,null,null,null,30,10,20,20,null,null,null,null,null,null,null,null,null,null,null,null,null,null,null,null,null,null,null,null,null,null,null,null,null,null,null,null,null,null,null,null,null,null,null,null,null,null,null,null,null,null,null,null,null,null,null,null,null,null,null,null,null,null,null,null,null,null,null,null,null,null,null,null,null,null,null,null,null,null,null,null,null,null,null,null,null,null,null,null,null,null,null,null,null,null,null,128]
["ОУП.02"," Литература","гр",4,null,null,null,null,null,123,null,{"$f":"N12+P12","v":132},null,{"$f":"V12+AC12+AJ12+AQ12+AX12+BE12+BL12+BS12","v":44},null,88,88,0,null,null,48,16,32,32,null,null,null,30,10,20,20,null,null,null,48,8,16,16,null,null,null,60,10,20,20,null,null,null,null,null,null,null,null,null,null,null,null,null,null,null,null,null,null,null,null,null,null,null,null,null,null,null,null,null,null,null,null,null,null,null,null,null,null,null,null,null,null,null,null,null,null,null,null,null,null,null,null,null,null,null,null,null,null,null,null,null,null,null,null,null,null,null,null,null,null,null,null,null,null,null,null,null,null,null,null,null,null,null,null,null,null,null,40]
["ОУП.03","Родная литература","гр",null,null,null,null,null,null,34,null,54,null,18,null,36,36,null,null,null,null,null,null,null,null,null,null,null,null,null,null,null,null,null,null,8,16,16,null,null,null,null,10,20,20,null,null,null,null,null,null,null,null,null,null,null,null,null,null,null,null,null,null,null,null,null,null,null,null,null,null,null,null,null,null,null,null,null,null,null,null,null,null,null,null,null,null,null,null,null,null,null,null,null,null,null,null,null,null,null,null,null,null,null,null,null,null,null,null,null,null,null,null,null,null,null,null,null,null,null,null,null,null,null,null,null,null,null,null,null,null,null,68]
["ОУП.04","Иностранный язык","мг",null,null,34,null,null,null,12,null,{"$f":"N14+P14","v":192},null,{"$f":"V14+AC14+AJ14+AQ14+AX14+BE14+BL14+BS14","v":64},null,{"$f":"W14+AD14+AK14+AR14+AY14+BF14+BM14+BT14","v":128},{"$f":"X14+AE14+AL14+AS14+AZ14+BG14+BN14+BU14","v":0},{"$f":"Y14+AF14+AM14+AT14+BA14+BH14+BO14+BV14","v":128},null,null,24,8,16,null,16,null,null,60,20,40,null,40,null,null,48,16,32,null,32,null,null,60,20,40,null,40,null,null,null,null,null,null,null,null,null,null,null,null,null,null,null,null,null,null,null,null,null,null,null,null,null,null,null,null,null,null,null,null,null,null,null,null,null,null,null,null,null,null,null,null,null,null,null,null,null,null,null,null,null,null,null,null,null,null,null,null,null,null,null,null,null,null,null,null,null,null,null,null,null,null,null,null,null,null,null,null,null,null,null,null,null,null,72]
["ОУП.05","Обществознание","гр",null,null,4,null,null,null,null,null,60,null,20,null,40,40,0,null,null,null,null,null,null,null,null,null,null,null,null,null,null,null,null,null,null,null,null,null,null,null,60,20,40,40,null,null,null,null,null,null,null,null,null,null,null,null,null,null,null,null,null,null,null,null,null,null,null,null,null,null,null,null,null,null,null,null,null,null,null,null,null,null,null,null,null,null,null,null,null,null,null,null,null,null,null,null,null,null,null,null,null,null,null,null,null,null,null,null,null,null,null,null,null,null,null,null,null,null,null,null,null,null,null,null,null,null,null,null,null,null,null,36]
["ОУП.06","Математика","мг",3,null,null,null,null,null,12,null,102,null,34,null,{"$f":"W16+AD16+AK16+AR16+AY16+BF16+BM16+BT16","v":68},68,0,null,null,24,8,16,16,null,null,null,30,10,20,20,null,null,null,48,16,32,32,null,null,null,null,null,null,null,null,null,null,null,null,null,null,null,null,null,null,null,null,null,null,null,null,null,null,null,null,null,null,null,null,null,null,null,null,null,null,null,null,null,null,null,null,null,null,null,null,null,null,null,null,null,null,null,null,null,null,null,null,null,null,null,null,null,null,null,null,null,null,null,null,null,null,null,null,null,null,null,null,null,null,null,null,null,null,null,null,null,null,null,null,null,null,144]
["ОУП.07","Естествознание","гр",null,null,2,null,null,null,1,null,{"$f":"N17+P17","v":108},null,{"$f":"V17+AC17+AJ17+AQ17+AX17+BE17+BL17+BS17","v":36},null,72,72,0,null,null,48,16,32,32,null,null,null,60,20,40,40,null,null,null,null,null,null,null,null,null,null,null,null,null,null,null,null,null,null,null,null,null,null,null,null,null,null,null,null,null,null,null,null,null,null,null,null,null,null,null,null,null,null,null,null,null,null,null,null,null,null,null,null,null,null,null,null,null,null,null,null,null,null,null,null,null,null,null,null,null,null,null,null,null,null,null,null,null,null,null,null,null,null,null,null,null,null,null,null,null,null,null,null,null,null,null,null,null,null,null,null,null,72]
["ОУП.08","Астрономия","гр",null,null,4,null,null,null,3,null,{"$f":"N18+P18","v":54},null,{"$f":"V18+AC18+AJ18+AQ18+AX18+BE18+BL18+BS18","v":18},null,36,36,0,null,null,null,null,null,null,null,null,null,null,null,null,null,null,null,null,24,8,16,16,null,null,null,30,10,20,20,null,null,null,null,null,null,null,null,null,null,null,null,null,null,null,null,null,null,null,null,null,null,null,null,null,null,null,null,null,null,null,null,null,null,null,null,null,null,null,null,null,null,null,null,null,null,null,null,null,null,null,null,null,null,null,null,null,null,null,null,null,null,null,null,null,null,null,null,null,null,null,null,null,null,null,null,null,null,null,null,null,null,null,null,null,null,null,72]
["ОУП.09","Основы безопасности жизнедеятельности","гр",null,null,2,null,null,null,1,null,108,null,36,null,72,72,0,null,null,48,16,32,32,null,null,null,60,20,40,40,null,null,null,null,null,null,null,null,null,null,null,null,null,null,null,null,null,null,null,null,null,null,null,null,null,null,null,null,null,null,null,null,null,null,null,null,null,null,null,null,null,null,null,null,null,null,null,null,null,null,null,null,null,null,null,null,null,null,null,null,null,null,null,null,null,null,null,null,null,null,null,null,null,null,null,null,null,null,null,null,null,null,null,null,null,null,null,null,null,null,null,null,null,null,null,null,null,null,null,null,null,124]
["ОУП.10","Физическая культура","гр",null,1234,null,null,null,null,null,null,216,null,72,null,144,144,0,null,null,48,16,32,32,null,null,null,60,20,40,40,null,null,null,48,16,32,32,null,null,null,60,20,40,40,null,null,null,null,null,null,null,null,null,null,null,null,null,null,null,null,null,null,null,null,null,null,null,null,null,null,null,null,null,null,null,null,null,null,null,null,null,null,null,null,null,null,null,null,null,null,null,null,null,null,null,null,null,null,null,null,null,null,null,null,null,null,null,null,null,null,null,null,null,null,null,null,null,null,null,null,null,null,null,null,null,null,null,null,null,null,null,144]
["ПУП.00","Профильные учебные предметы",null,8,null,1,{"$f":"LEN(#REF!)+LEN(#REF!)+LEN(G26)+LEN(#REF!)+LEN(#REF!)+LEN(#REF!)+LEN(#REF!)","v":{"$error":"#REF!"}},{"$f":"LEN(#REF!)+LEN(#REF!)+LEN(H26)+LEN(#REF!)+LEN(#REF!)+LEN(#REF!)+LEN(#REF!)","v":{"$error":"#REF!"}},{"$f":"LEN(#REF!)+LEN(#REF!)+LEN(I26)+LEN(#REF!)+LEN(#REF!)+LEN(#REF!)+LEN(#REF!)","v":{"$error":"#REF!"}},7,null,972,{"$f":"SUM(M21:M26)","v":0},324,{"$f":"SUM(O21:O26)","v":0},648,648,{"$f":"SUM(R21:R26)","v":0},null,null,240,80,160,160,{"$f":"SUM(Y21:Y26)","v":0},{"$f":"SUM(Z21:Z26)","v":0},{"$f":"SUM(AA21:AA26)","v":0},{"$f":"SUM(AB21:AB26)","v":360},100,200,200,{"$f":"SUM(AF21:AF26)","v":0},{"$f":"SUM(AG21:AG26)","v":0},{"$f":"SUM(AH21:AH26)","v":0},{"$f":"SUM(AI21:AI26)","v":192},40,80,80,{"$f":"SUM(AM21:AM26)","v":0},{"$f":"SUM(AN21:AN26)","v":0},{"$f":"SUM(AO21:AO26)","v":0},{"$f":"SUM(AP21:AP26)","v":240},50,100,100,{"$f":"SUM(AT21:AT26)","v":0},0,0,72,24,48,48,0,0,0,90,30,60,60,0,0,0,0,0,0,0,0,0,0,0,0,0,0,0,0,0,0,{"$f":"SUM(BZ21:BZ26)","v":0},0,0,0,0,0,0,0,0,0,0,0,0,0,0,0,0,0,0,0,0,0,0,0,0,0,0,0,0,0,0,0,{"$f":"SUM(DF21:DF26)","v":0},0,0,0,0,0,0,0,0,0,0,0,0,0,0,0,0,0,0,0,0,0,0,648,{"$f":"SUM(ED21:ED26)","v":0}]
["ПУП.01","История мировой культуры","гр",null,null,4,null,null,null,123,null,{"$f":"N22+P22","v":216},null,{"$f":"V22+AC22+AJ22+AQ22+AX22+BE22+BL22+BS22","v":72},null,{"$f":"W22+AD22+AK22+AR22+AY22+BF22+BM22+BT22","v":144},144,0,null,null,48,16,32,32,null,null,null,60,20,40,40,null,null,null,48,16,32,32,null,null,null,60,20,40,40,null,null,null,null,null,null,null,null,null,null,null,null,null,null,null,null,null,null,null,null,null,null,null,null,null,null,null,null,null,null,null,null,null,null,null,null,null,null,null,null,null,null,null,null,null,null,null,null,null,null,null,null,null,null,null,null,null,null,null,null,null,null,null,null,null,null,null,null,null,null,null,null,null,null,null,null,null,null,null,null,null,null,null,null,null,null,null,144]
["ПУП.02","История","гр",2,null,null,null,null,null,1,null,{"$f":"N23+P23","v":216},null,{"$f":"V23+AC23+AJ23+AQ23+AX23+BE23+BL23+BS23","v":72},null,{"$f":"W23+AD23+AK23+AR23+AY23+BF23+BM23+BT23","v":144},{"$f":"X23+AE23+AL23+AS23+AZ23+BG23+BN23+BU23","v":144},{"$f":"Y23+AF23+AM23+AT23+BA23+BH23+BO23+BV23","v":0},null,null,96,32,64,64,null,null,null,120,40,80,80,null,null,null,null,null,null,null,null,null,null,null,null,null,null,null,null,null,null,null,null,null,null,null,null,null,null,null,null,null,null,null,null,null,null,null,null,null,null,null,null,null,null,null,null,null,null,null,null,null,null,null,null,null,null,null,null,null,null,null,null,null,null,null,null,null,null,null,null,null,null,null,null,null,null,null,null,null,null,null,null,null,null,null,null,null,null,null,null,null,null,null,null,null,null,null,null,null,null,null,null,null,144]
["ПУП.03","Народная музыкальная культура","гр",2,null,null,null,null,null,1,null,{"$f":"N24+P24","v":54},null,{"$f":"V24+AC24+AJ24+AQ24+AX24+BE24+BL24+BS24","v":18},null,{"$f":"W24+AD24+AK24+AR24+AY24+BF24+BM24+BT24","v":36},36,0,null,null,24,8,16,16,null,null,null,30,10,20,20,null,null,null,null,null,null,null,null,null,null,null,null,null,null,null,null,null,null,null,null,null,null,null,null,null,null,null,null,null,null,null,null,null,null,null,null,null,null,null,null,null,null,null,null,null,null,null,null,null,null,null,null,null,null,null,null,null,null,null,null,null,null,null,null,null,null,null,null,null,null,null,null,null,null,null,null,null,null,null,null,null,null,null,null,null,null,null,null,null,null,null,null,null,null,null,null,null,null,null,null,null,36]
["ПУП.04","Музыкальная литература (зарубежная и отечественная)","мг",1246,null,null,null,null,null,35,null,486,null,162,null,324,324,0,null,null,72,24,48,48,null,null,null,90,30,60,60,null,null,null,72,24,48,48,null,null,null,90,30,60,60,null,null,null,72,24,48,48,null,null,null,90,30,60,60,null,null,null,null,null,null,null,null,null,null,null,null,null,null,null,null,null,null,null,null,null,null,null,null,null,null,null,null,null,null,null,null,null,null,null,null,null,null,null,null,null,null,null,null,null,null,null,null,null,null,null,null,null,null,null,null,null,null,null,null,null,null,null,null,null,null,null,null,null,null,null,null,null,324]
[null,"час/нед",null,null,null,null,null,null,null,null,null,null,null,null,null,null,null,null,null,null,22.5,null,15,null,null,null,null,22.5,null,15,null,null,null,null,31.4,null,21,null,null,null,null,31.5,null,21,null,null,null,null,49.5,null,33,null,null,null,null,49.5,null,33,null,null,null,null,54,null,36,null,null,null,null,54,null,36,null,null,null,null,"NaN",null,"NaN",null,null,null,null,"NaN",null,"NaN",null,null,null,null,"NaN",null,"NaN",null,null,null,null,"NaN",null,"NaN",null,null,null,null,"NaN",null,"NaN",null,null,null,null,"NaN",null,"NaN",null,null,null,null,"NaN",null,"NaN",null,null,null,null,"NaN",null,"NaN"]
["ОГСЭ.00","Общий гуманитарный и социально-экономический цикл",null,{"$f":"LEN(D28)+LEN(D29)+LEN(D30)+LEN(D31)+LEN(D32)","v":1},{"$f":"LEN(E28)+LEN(E29)+LEN(E30)+LEN(E31)+LEN(E32)","v":3},3,0,0,0,3,null,{"$f":"SUM(L28:L32)","v":531},{"$f":"SUM(M28:M32)","v":0},177,0,354,{"$f":"SUM(Q28:Q32)","v":192},162,null,null,null,{"$f":"SUM(V28:V32)","v":0},{"$f":"SUM(W28:W32)","v":0},{"$f":"SUM(X28:X32)","v":0},{"$f":"SUM(Y28:Y32)","v":0},null,{"$f":"SUM(AA28:AA32)","v":0},null,{"$f":"SUM(AC28:AC32)","v":0},{"$f":"SUM(AD28:AD32)","v":0},{"$f":"SUM(AE28:AE32)","v":0},{"$f":"SUM(AF28:AF32)","v":0},null,{"$f":"SUM(AH28:AH32)","v":0},59,{"$f":"SUM(AJ28:AJ32)","v":24},{"$f":"SUM(AK28:AK32)","v":48},{"$f":"SUM(AL28:AL32)","v":48},{"$f":"SUM(AM28:AM32)","v":0},null,{"$f":"SUM(AO28:AO32)","v":0},null,{"$f":"SUM(AQ28:AQ32)","v":0},{"$f":"SUM(AR28:AR32)","v":0},{"$f":"SUM(AS28:AS32)","v":0},{"$f":"SUM(AT28:AT32)","v":0},null,{"$f":"SUM(AV28:AV32)","v":0},167,{"$f":"SUM(AX28:AX32)","v":56},{"$f":"SUM(AY28:AY32)","v":112},{"$f":"SUM(AZ28:AZ32)","v":48},{"$f":"SUM(BA28:BA32)","v":64},null,{"$f":"SUM(BC28:BC32)","v":0},null,{"$f":"SUM(BE28:BE32)","v":30},{"$f":"SUM(BF28:BF32)","v":60},{"$f":"SUM(BG28:BG32)","v":0},{"$f":"SUM(BH28:BH32)","v":60},null,{"$f":"SUM(BJ28:BJ32)","v":0},null,{"$f":"SUM(BL28:BL32)","v":48},{"$f":"SUM(BM28:BM32)","v":96},{"$f":"SUM(BN28:BN32)","v":96},{"$f":"SUM(BO28:BO32)","v":0},null,{"$f":"SUM(BQ28:BQ32)","v":0},52,{"$f":"SUM(BS28:BS32)","v":19},{"$f":"SUM(BT28:BT32)","v":38},{"$f":"SUM(BU28:BU32)","v":0},{"$f":"SUM(BV28:BV32)","v":38},null,{"$f":"SUM(BX28:BX32)","v":0},null,null,null,null,null,null,null,null,null,null,null,null,null,null,null,null,null,null,null,null,null,null,null,null,null,null,null,null,null,null,null,null,null,null,null,null,null,null,null,null,null,null,null,null,null,null,null,null,null,null,null,null,null,null,null,null,{"$f":"SUM(EC28:EC32)","v":354},{"$f":"SUM(ED28:ED32)","v":0}]
["ОГСЭ.01","Основы философии","гр",null,null,5,null,null,null,null,null,{"$f":"N28+P28","v":72},null,24,null,{"$f":"W28+AD28+AK28+AR28+AY28+BF28+BM28+BT28","v":48},48,0,null,null,null,null,null,null,null,null,null,null,null,null,null,null,null,null,null,null,null,null,null,null,null,null,null,null,null,null,null,null,59,24,48,48,null,null,null,null,null,null,null,null,null,null,null,null,null,null,null,null,null,null,null,null,null,null,null,null,null,null,null,null,null,null,null,null,null,null,null,null,null,null,null,null,null,null,null,null,null,null,null,null,null,null,null,null,null,null,null,null,null,null,null,null,null,null,null,null,null,null,null,null,null,null,null,null,null,null,null,null,null,null,null,null,48]
["ОГСЭ.02","История","гр",3,null,null,null,null,null,null,null,{"$f":"N29+P29","v":72},null,24,null,48,48,0,null,null,null,null,null,null,null,null,null,null,null,null,null,null,null,null,59,24,48,48,null,null,null,null,null,null,null,null,null,null,null,null,null,null,null,null,null,null,null,null,null,null,null,null,null,null,null,null,null,null,null,null,null,null,null,null,null,null,null,null,null,null,null,null,null,null,null,null,null,null,null,null,null,null,null,null,null,null,null,null,null,null,null,null,null,null,null,null,null,null,null,null,null,null,null,null,null,null,null,null,null,null,null,null,null,null,null,null,null,null,null,null,null,null,48]
["ОГСЭ.03","Психология общения","гр",null,null,7,null,null,null,null,null,{"$f":"N30+P30","v":72},null,24,null,48,48,0,null,null,null,null,null,null,null,null,null,null,null,null,null,null,null,null,null,null,null,null,null,null,null,null,null,null,null,null,null,null,null,null,null,null,null,null,null,null,null,null,null,null,null,null,59,24,48,48,null,null,null,null,null,null,null,null,null,null,null,null,null,null,null,null,null,null,null,null,null,null,null,null,null,null,null,null,null,null,null,null,null,null,null,null,null,null,null,null,null,null,null,null,null,null,null,null,null,null,null,null,null,null,null,null,null,null,null,null,null,null,null,null,null,null,48]
["ОГСЭ.04","Иностранный язык","мг",null,null,8,null,null,null,567,null,159,null,53,null,106,16,90,null,null,null,null,null,null,null,null,null,null,null,null,null,null,null,null,null,null,null,null,null,null,null,null,null,null,null,null,null,null,44,16,32,null,32,null,null,28,10,20,null,20,null,null,22,8,16,16,null,null,null,52,19,38,null,38,null,null,null,null,null,null,null,null,null,null,null,null,null,null,null,null,null,null,null,null,null,null,null,null,null,null,null,null,null,null,null,null,null,null,null,null,null,null,null,null,null,null,null,null,null,null,null,null,null,null,null,null,null,null,null,null,null,null,106]
["ОГСЭ.05","Физическая культура","гр",null,567,null,null,null,null,null,null,{"$f":"N32+P32","v":156},null,52,null,104,32,72,null,null,null,null,null,null,null,null,null,null,null,null,null,null,null,null,null,null,null,null,null,null,null,null,null,null,null,null,null,null,64,16,32,null,32,null,null,80,20,40,null,40,null,null,64,16,32,32,null,null,null,null,null,null,null,null,null,null,null,null,null,null,null,null,null,null,null,null,null,null,null,null,null,null,null,null,null,null,null,null,null,null,null,null,null,null,null,null,null,null,null,null,null,null,null,null,null,null,null,null,null,null,null,null,null,null,null,null,null,null,null,null,null,null,104]
["П","Профессиональный цикл"]
["ОП.00","Общепрофессиональные дисциплины",null,{"$f":"LEN(D35)+LEN(D36)+LEN(D37)+LEN(D38)+LEN(D39)+LEN(D40)+LEN(D41)+LEN(D42)","v":6},{"$f":"LEN(E35)+LEN(E36)+LEN(E37)+LEN(E38)+LEN(E39)+LEN(E40)+LEN(E41)+LEN(E42)","v":0},5,0,0,0,16,null,{"$f":"SUM(L35:L42)","v":1420},{"$f":"SUM(M35:M42)","v":0},473,0,947,173,774,null,null,108,{"$f":"SUM(V35:V42)","v":40},{"$f":"SUM(W35:W42)","v":80},{"$f":"SUM(X35:X42)","v":0},{"$f":"SUM(Y35:Y42)","v":80},null,{"$f":"SUM(AA35:AA42)","v":0},135,{"$f":"SUM(AC35:AC42)","v":50},{"$f":"SUM(AD35:AD42)","v":100},{"$f":"SUM(AE35:AE42)","v":0},{"$f":"SUM(AF35:AF42)","v":100},null,{"$f":"SUM(AH35:AH42)","v":0},120,{"$f":"SUM(AJ35:AJ42)","v":32},{"$f":"SUM(AK35:AK42)","v":64},{"$f":"SUM(AL35:AL42)","v":0},{"$f":"SUM(AM35:AM42)","v":64},null,{"$f":"SUM(AO35:AO42)","v":0},150,{"$f":"SUM(AQ35:AQ42)","v":40},{"$f":"SUM(AR35:AR42)","v":80},{"$f":"SUM(AS35:AS42)","v":0},{"$f":"SUM(AT35:AT42)","v":80},null,{"$f":"SUM(AV35:AV42)","v":0},144,{"$f":"SUM(AX35:AX42)","v":40},{"$f":"SUM(AY35:AY42)","v":80},{"$f":"SUM(AZ35:AZ42)","v":16},{"$f":"SUM(BA35:BA42)","v":64},null,{"$f":"SUM(BC35:BC42)","v":0},180,{"$f":"SUM(BE35:BE42)","v":60},{"$f":"SUM(BF35:BF42)","v":120},{"$f":"SUM(BG35:BG42)","v":20},{"$f":"SUM(BH35:BH42)","v":100},null,{"$f":"SUM(BJ35:BJ42)","v":0},264,{"$f":"SUM(BL35:BL42)","v":88},{"$f":"SUM(BM35:BM42)","v":176},{"$f":"SUM(BN35:BN42)","v":80},{"$f":"SUM(BO35:BO42)","v":96},null,{"$f":"SUM(BQ35:BQ42)","v":0},256,{"$f":"SUM(BS35:BS42)","v":123},{"$f":"SUM(BT35:BT42)","v":247},{"$f":"SUM(BU35:BU42)","v":57},{"$f":"SUM(BV35:BV42)","v":190},null,{"$f":"SUM(BX35:BX42)","v":0},null,null,null,null,null,null,null,null,null,null,null,null,null,null,null,null,null,null,null,null,null,null,null,null,null,null,null,null,null,null,null,null,null,null,null,null,null,null,null,null,null,null,null,null,null,null,null,null,null,null,null,null,null,null,null,null,{"$f":"SUM(EC35:EC42)","v":815},{"$f":"SUM(ED35:ED42)","v":132}]
["ОП.01","Музыкальная литература (зарубежная и отечественная)","мг",8,null,null,null,null,null,7,null,{"$f":"N35+P35","v":157},null,{"$f":"V35+AC35+AJ35+AQ35+AX35+BE35+BL35+BS35","v":52},null,{"$f":"W35+AD35+AK35+AR35+AY35+BF35+BM35+BT35","v":105},{"$f":"X35+AE35+AL35+AS35+AZ35+BG35+BN35+BU35","v":105},{"$f":"Y35+AF35+AM35+AT35+BA35+BH35+BO35+BV35","v":0},null,null,null,null,null,null,null,null,null,null,null,null,null,null,null,null,null,null,null,null,null,null,null,null,null,null,null,null,null,null,null,null,null,null,null,null,null,null,null,null,null,null,null,null,72,24,48,48,null,null,null,85,28,57,57,null,null,null,null,null,null,null,null,null,null,null,null,null,null,null,null,null,null,null,null,null,null,null,null,null,null,null,null,null,null,null,null,null,null,null,null,null,null,null,null,null,null,null,null,null,null,null,null,null,null,null,null,null,null,null,null,null,null,null,105]
["ОП.02","Сольфеджио","мг",47,null,2,null,null,null,13568,null,{"$f":"N36+P36","v":429},null,{"$f":"V36+AC36+AJ36+AQ36+AX36+BE36+BL36+BS36","v":143},null,{"$f":"W36+AD36+AK36+AR36+AY36+BF36+BM36+BT36","v":286},{"$f":"X36+AE36+AL36+AS36+AZ36+BG36+BN36+BU36","v":0},{"$f":"Y36+AF36+AM36+AT36+BA36+BH36+BO36+BV36","v":286},null,null,48,16,32,null,32,null,null,60,20,40,null,40,null,null,48,16,32,null,32,null,null,60,20,40,null,40,null,null,48,16,32,null,32,null,null,60,20,40,null,40,null,null,48,16,32,null,32,null,null,null,19,38,null,38,null,null,null,null,null,null,null,null,null,null,null,null,null,null,null,null,null,null,null,null,null,null,null,null,null,null,null,null,null,null,null,null,null,null,null,null,null,null,null,null,null,null,null,null,null,null,null,null,null,null,null,null,null,null,null,null,null,null,248,38]
[null,"Сольфеджио индивидуальное","инд",null,null,null,null,null,null,126,null,84,null,28,null,56,0,56,null,null,12,8,16,null,16,null,null,15,10,20,null,20,null,null,12,null,null,null,null,null,null,15,null,null,null,null,null,null,12,null,null,null,null,null,null,15,10,20,null,20,null,null,null,null,null,null,null,null,null,null,null,null,null,null,null,null,null,null,null,null,null,null,null,null,null,null,null,null,null,null,null,null,null,null,null,null,null,null,null,null,null,null,null,null,null,null,null,null,null,null,null,null,null,null,null,null,null,null,null,null,null,null,null,null,null,null,null,null,null,null,null,null,null,56]
["ОП.03","Элементарная теория музыки","мг",2,null,1,null,null,null,null,null,108,null,36,null,72,0,72,null,null,48,16,32,null,32,null,null,60,20,40,null,40,null,null,null,null,null,null,null,null,null,null,null,null,null,null,null,null,null,null,null,null,null,null,null,null,null,null,null,null,null,null,null,null,null,null,null,null,null,null,null,null,null,null,null,null,null,null,null,null,null,null,null,null,null,null,null,null,null,null,null,null,null,null,null,null,null,null,null,null,null,null,null,null,null,null,null,null,null,null,null,null,null,null,null,null,null,null,null,null,null,null,null,null,null,null,null,null,null,null,null,null,72]
["ОП.04","Гармония","мг",57,null,null,null,null,null,3468,null,321,null,107,null,214,0,214,null,null,null,null,null,null,null,null,null,null,null,null,null,null,null,null,48,16,32,null,32,null,null,60,20,40,null,40,null,null,48,16,32,null,32,null,null,60,20,40,null,40,null,null,48,16,32,null,32,null,null,null,19,38,null,38,null,null,null,null,null,null,null,null,null,null,null,null,null,null,null,null,null,null,null,null,null,null,null,null,null,null,null,null,null,null,null,null,null,null,null,null,null,null,null,null,null,null,null,null,null,null,null,null,null,null,null,null,null,null,null,null,null,null,176,38]
["ОП.05","Анализ музыкальных произведений","мг",null,null,8,null,null,null,7,null,105,null,35,null,70,0,70,null,null,null,null,null,null,null,null,null,null,null,null,null,null,null,null,null,null,null,null,null,null,null,null,null,null,null,null,null,null,null,null,null,null,null,null,null,null,null,null,null,null,null,null,48,16,32,null,32,null,null,57,19,38,null,38,null,null,null,null,null,null,null,null,null,null,null,null,null,null,null,null,null,null,null,null,null,null,null,null,null,null,null,null,null,null,null,null,null,null,null,null,null,null,null,null,null,null,null,null,null,null,null,null,null,null,null,null,null,null,null,null,null,null,70]
["ОП.06","Музыкальная информатика","мг",null,null,8,null,null,null,null,null,114,null,38,null,76,0,76,null,null,null,null,null,null,null,null,null,null,null,null,null,null,null,null,null,null,null,null,null,null,null,null,null,null,null,null,null,null,null,null,null,null,null,null,null,null,null,null,null,null,null,null,null,null,null,null,null,null,null,114,38,76,null,76,null,null,null,null,null,null,null,null,null,null,null,null,null,null,null,null,null,null,null,null,null,null,null,null,null,null,null,null,null,null,null,null,null,null,null,null,null,null,null,null,null,null,null,null,null,null,null,null,null,null,null,null,null,null,null,null,null,null,76]
["ОП.07","Безопасность жизнедеятельности","гр",null,null,7,null,null,null,56,null,102,null,34,null,68,68,0,null,null,null,null,null,null,null,null,null,null,null,null,null,null,null,null,null,null,null,null,null,null,null,null,null,null,null,null,null,null,24,8,16,16,null,null,null,30,10,20,20,null,null,null,48,16,32,32,null,null,null,null,null,null,null,null,null,null,null,null,null,null,null,null,null,null,null,null,null,null,null,null,null,null,null,null,null,null,null,null,null,null,null,null,null,null,null,null,null,null,null,null,null,null,null,null,null,null,null,null,null,null,null,null,null,null,null,null,null,null,null,null,null,null,68]
["ПМ","Профессиональные модули"]
["ПМ.01","Исполнительская деятельность",null,{"$f":"LEN(D45)+LEN(D46)+LEN(D47)+LEN(D48)+LEN(D49)+LEN(D50)+LEN(D51)+LEN(D52)","v":9},0,4,0,0,0,23,null,{"$f":"SUM(L45:L55)","v":1925},{"$f":"SUM(M45:M52)","v":0},{"$f":"SUM(N45:N55)","v":642},0,{"$f":"SUM(P45:P55)","v":1283},280,823,0,null,127,{"$f":"SUM(V45:V52)","v":48},{"$f":"SUM(W45:W52)","v":96},{"$f":"SUM(X45:X52)","v":32},{"$f":"SUM(Y45:Y52)","v":64},null,{"$f":"SUM(AA45:AA52)","v":0},null,{"$f":"SUM(AC45:AC52)","v":60},{"$f":"SUM(AD45:AD52)","v":120},{"$f":"SUM(AE45:AE52)","v":40},{"$f":"SUM(AF45:AF52)","v":80},null,{"$f":"SUM(AH45:AH52)","v":0},null,{"$f":"SUM(AJ45:AJ52)","v":56},{"$f":"SUM(AK45:AK52)","v":112},{"$f":"SUM(AL45:AL52)","v":16},{"$f":"SUM(AM45:AM52)","v":96},null,{"$f":"SUM(AO45:AO52)","v":0},null,{"$f":"SUM(AQ45:AQ52)","v":100},{"$f":"SUM(AR45:AR52)","v":200},{"$f":"SUM(AS45:AS52)","v":60},{"$f":"SUM(AT45:AT52)","v":140},null,{"$f":"SUM(AV45:AV52)","v":0},null,{"$f":"SUM(AX45:AX52)","v":48},{"$f":"SUM(AY45:AY52)","v":96},{"$f":"SUM(AZ45:AZ52)","v":0},{"$f":"SUM(BA45:BA52)","v":96},null,{"$f":"SUM(BC45:BC52)","v":0},null,{"$f":"SUM(BE45:BE52)","v":90},{"$f":"SUM(BF45:BF52)","v":180},{"$f":"SUM(BG45:BG52)","v":40},{"$f":"SUM(BH45:BH52)","v":140},null,{"$f":"SUM(BJ45:BJ52)","v":0},null,{"$f":"SUM(BL45:BL52)","v":64},{"$f":"SUM(BM45:BM52)","v":128},{"$f":"SUM(BN45:BN52)","v":24},{"$f":"SUM(BO45:BO52)","v":104},null,{"$f":"SUM(BQ45:BQ52)","v":0},null,{"$f":"SUM(BS45:BS52)","v":86},{"$f":"SUM(BT45:BT52)","v":171},{"$f":"SUM(BU45:BU52)","v":68},{"$f":"SUM(BV45:BV52)","v":103},null,{"$f":"SUM(BX45:BX52)","v":0},null,null,null,null,null,null,null,null,null,null,null,null,null,null,null,null,null,null,null,null,null,null,null,null,null,null,null,null,null,null,null,null,null,null,null,null,null,null,null,null,null,null,null,null,null,null,null,null,null,null,null,null,null,null,null,null,{"$f":"SUM(EC45:EC52)","v":875},{"$f":"SUM(ED45:ED52)","v":228}]
["МДК.01.01.","Специальный инструмент","инд",23456,null,null,null,null,null,178,null,{"$f":"N45+P45","v":751},null,{"$f":"V45+AC45+AJ45+AQ45+AX45+BE45+BL45+BS45","v":250},null,{"$f":"W45+AD45+AK45+AR45+AY45+BF45+BM45+BT45","v":501},{"$f":"X45+AE45+AL45+AS45+AZ45+BG45+BN45+BU45","v":0},{"$f":"Y45+AF45+AM45+AT45+BA45+BH45+BO45+BV45","v":501},null,null,75,32,64,null,64,null,null,93,40,80,null,80,null,null,75,32,64,null,64,null,null,93,40,80,null,80,null,null,75,24,48,null,48,null,null,93,30,60,null,60,null,null,75,24,48,null,48,null,null,91,28,57,null,57,null,null,null,null,null,null,null,null,null,null,null,null,null,null,null,null,null,null,null,null,null,null,null,null,null,null,null,null,null,null,null,null,null,null,null,null,null,null,null,null,null,null,null,null,null,null,null,null,null,null,null,null,null,null,null,null,null,null,429,72]
["МДК.01.02","Ансамблевое исполнительство","инд",6,null,null,null,null,null,34578,null,{"$f":"N46+P46","v":161},null,{"$f":"V46+AC46+AJ46+AQ46+AX46+BE46+BL46+BS46","v":54},null,{"$f":"W46+AD46+AK46+AR46+AY46+BF46+BM46+BT46","v":107},{"$f":"X46+AE46+AL46+AS46+AZ46+BG46+BN46+BU46","v":0},{"$f":"Y46+AF46+AM46+AT46+BA46+BH46+BO46+BV46","v":107},null,null,null,null,null,null,null,null,null,null,null,null,null,null,null,null,24,8,16,null,16,null,null,30,10,20,null,20,null,null,24,8,16,null,16,null,null,30,10,20,null,20,null,null,24,8,16,null,16,null,null,29,10,19,null,19,null,null,null,null,null,null,null,null,null,null,null,null,null,null,null,null,null,null,null,null,null,null,null,null,null,null,null,null,null,null,null,null,null,null,null,null,null,null,null,null,null,null,null,null,null,null,null,null,null,null,null,null,null,null,null,null,null,null,107]
["МДК.01.03","Концертмейстерский класс","инд",5,null,null,null,null,null,34678,null,220,null,73,null,147,0,147,null,null,null,null,null,null,null,null,null,null,null,null,null,null,null,null,24,8,16,null,16,null,null,60,20,40,null,40,null,null,24,8,16,null,16,null,null,90,20,40,null,40,null,null,24,8,16,null,16,null,null,28,9,19,null,19,null,null,null,null,null,null,null,null,null,null,null,null,null,null,null,null,null,null,null,null,null,null,null,null,null,null,null,null,null,null,null,null,null,null,null,null,null,null,null,null,null,null,null,null,null,null,null,null,null,null,null,null,null,null,null,null,null,null,107,40]
["МДК.01.04.","История исполнительского искусства, устройство клавишных инструментов: история исполнительского искусства","мг",8,null,6,null,null,null,1247,null,279,null,93,null,186,170,16,null,null,null,8,16,16,null,null,null,null,10,20,20,null,null,null,null,null,null,null,null,null,null,null,20,40,40,null,null,null,null,null,null,null,null,null,null,null,20,40,40,null,null,null,48,16,32,24,8,null,null,57,19,38,30,8,null,null,null,null,null,null,null,null,null,null,null,null,null,null,null,null,null,null,null,null,null,null,null,null,null,null,null,null,null,null,null,null,null,null,null,null,null,null,null,null,null,null,null,null,null,null,null,null,null,null,null,null,null,null,null,null,null,null,70,116]
[null,"История исполнительского искусства, устройство клавишных инструментов: устройство клавишных инструментов","мг",null,null,null,null,null,null,8,null,29,null,10,null,19,19,0,null,null,null,null,null,null,null,null,null,null,null,null,null,null,null,null,null,null,null,null,null,null,null,null,null,null,null,null,null,null,null,null,null,null,null,null,null,null,null,null,null,null,null,null,null,null,null,null,null,null,null,28,10,19,19,null,null,null,null,null,null,null,null,null,null,null,null,null,null,null,null,null,null,null,null,null,null,null,null,null,null,null,null,null,null,null,null,null,null,null,null,null,null,null,null,null,null,null,null,null,null,null,null,null,null,null,null,null,null,null,null,null,null,null,19]
["МДК.01.05.","Основы композиции, инструментоведение, дополнительный инструмент: основы композиции","мг",null,null,4,null,null,null,123,null,108,null,36,null,72,72,0,null,null,16,8,16,16,null,null,null,20,10,20,20,null,null,null,16,8,16,16,null,null,null,30,10,20,20,null,null,null,null,null,null,null,null,null,null,null,null,null,null,null,null,null,null,null,null,null,null,null,null,null,null,null,null,null,null,null,null,null,null,null,null,null,null,null,null,null,null,null,null,null,null,null,null,null,null,null,null,null,null,null,null,null,null,null,null,null,null,null,null,null,null,null,null,null,null,null,null,null,null,null,null,null,null,null,null,null,null,null,null,null,null,null,72]
[null,"Основы композиции, инструментоведение, дополнительный инструмент: инструментоведение","мг",null,null,8,null,null,null,null,null,29,null,10,null,19,19,0,null,null,null,null,null,null,null,null,null,null,null,null,null,null,null,null,null,null,null,null,null,null,null,null,null,null,null,null,null,null,null,null,null,null,null,null,null,null,null,null,null,null,null,null,null,null,null,null,null,null,null,28,10,19,19,null,null,null,null,null,null,null,null,null,null,null,null,null,null,null,null,null,null,null,null,null,null,null,null,null,null,null,null,null,null,null,null,null,null,null,null,null,null,null,null,null,null,null,null,null,null,null,null,null,null,null,null,null,null,null,null,null,null,null,19]
[null,"Основы композиции, инструментоведение, дополнительный инструмент: дополнительный инструмент","инд",7,null,null,null,null,null,56,null,78,null,26,null,52,0,52,null,null,null,null,null,null,null,null,null,null,null,null,null,null,null,null,null,null,null,null,null,null,null,null,null,null,null,null,null,null,24,8,16,null,16,null,null,30,10,20,null,20,null,null,24,8,16,null,16,null,null,null,null,null,null,null,null,null,null,null,null,null,null,null,null,null,null,null,null,null,null,null,null,null,null,null,null,null,null,null,null,null,null,null,null,null,null,null,null,null,null,null,null,null,null,null,null,null,null,null,null,null,null,null,null,null,null,null,null,null,null,null,null,null,52]
[null,"Изучение родственных инструментов","инд",null,null,4,null,null,null,123,null,{"$f":"N53+P53","v":108},null,{"$f":"V53+AC53+AJ53+AQ53+AX53+BE53+BL53+BS53","v":36},null,{"$f":"W53+AD53+AK53+AR53+AY53+BF53+BM53+BT53","v":72},0,72,null,null,29,8,16,null,16,null,null,38,10,20,null,20,null,null,40,8,16,null,16,null,null,30,10,20,null,20,null,null,null,null,null,null,null,null,null,null,null,null,null,null,null,null,null,null,null,null,null,null,null,null,null,null,null,null,null,null,null,null,null,null,null,null,null,null,null,null,null,null,null,null,null,null,null,null,null,null,null,null,null,null,null,null,null,null,null,null,null,null,null,null,null,null,null,null,null,null,null,null,null,null,null,null,null,null,null,null,null,null,null,null,null,null,null,72]
["МДК.01.06.","Дирижирование","инд",7,null,null,null,null,null,456,null,{"$f":"N54+P54","v":108},null,{"$f":"V54+AC54+AJ54+AQ54+AX54+BE54+BL54+BS54","v":36},null,72,0,72,null,null,null,null,null,null,null,null,null,null,null,null,null,null,null,null,null,null,null,null,null,null,null,27,10,20,null,20,null,null,22,8,16,null,16,null,null,20,10,20,null,20,null,null,20,8,16,null,16,null,null,null,null,null,null,null,null,null,null,null,null,null,null,null,null,null,null,null,null,null,null,null,null,null,null,null,null,null,null,null,null,null,null,null,null,null,null,null,null,null,null,null,null,null,null,null,null,null,null,null,null,null,null,null,null,null,null,null,null,null,null,null,null,null,null,72]
[null,"Чтение оркестровых партитур","инд",6,null,null,null,null,null,5,null,{"$f":"N55+P55","v":54},null,{"$f":"V55+AC55+AJ55+AQ55+AX55+BE55+BL55+BS55","v":18},null,36,0,36,null,null,null,null,null,null,null,null,null,null,null,null,null,null,null,null,null,null,null,null,null,null,null,null,null,null,null,null,null,null,24,8,16,null,16,null,null,20,10,20,null,20,null,null,null,null,null,null,null,null,null,null,null,null,null,null,null,null,null,null,null,null,null,null,null,null,null,null,null,null,null,null,null,null,null,null,null,null,null,null,null,null,null,null,null,null,null,null,null,null,null,null,null,null,null,null,null,null,null,null,null,null,null,null,null,null,null,null,null,null,null,null,null,null,null,36]
["ПМ.02","Педагогическая деятельность",null,{"$f":"LEN(D57)+LEN(D58)+LEN(D59)+LEN(D60)+LEN(D61)+LEN(D62)+LEN(D63)+LEN(D64)+LEN(D65)","v":2},{"$f":"LEN(E57)+LEN(E58)+LEN(E59)+LEN(E60)+LEN(E61)+LEN(E62)+LEN(E63)+LEN(E64)+LEN(E65)","v":1},1,0,0,0,11,null,{"$f":"SUM(L57:L65)","v":714},{"$f":"SUM(M57:M65)","v":0},238,0,476,392,84,{"$f":"SUM(S57:S65)","v":0},null,24,{"$f":"SUM(V57:V65)","v":0},{"$f":"SUM(W57:W65)","v":0},{"$f":"SUM(X57:X65)","v":0},{"$f":"SUM(Y57:Y65)","v":0},null,{"$f":"SUM(AA57:AA65)","v":0},null,{"$f":"SUM(AC57:AC65)","v":0},{"$f":"SUM(AD57:AD65)","v":0},{"$f":"SUM(AE57:AE65)","v":0},{"$f":"SUM(AF57:AF65)","v":0},null,{"$f":"SUM(AH57:AH65)","v":0},null,{"$f":"SUM(AJ57:AJ65)","v":24},{"$f":"SUM(AK57:AK65)","v":48},{"$f":"SUM(AL57:AL65)","v":48},{"$f":"SUM(AM57:AM65)","v":0},null,{"$f":"SUM(AO57:AO65)","v":0},null,{"$f":"SUM(AQ57:AQ65)","v":20},{"$f":"SUM(AR57:AR65)","v":40},{"$f":"SUM(AS57:AS65)","v":40},{"$f":"SUM(AT57:AT65)","v":0},null,{"$f":"SUM(AV57:AV65)","v":0},null,{"$f":"SUM(AX57:AX65)","v":64},{"$f":"SUM(AY57:AY65)","v":128},{"$f":"SUM(AZ57:AZ65)","v":106},{"$f":"SUM(BA57:BA65)","v":22},null,{"$f":"SUM(BC57:BC65)","v":0},null,{"$f":"SUM(BE57:BE65)","v":60},{"$f":"SUM(BF57:BF65)","v":120},{"$f":"SUM(BG57:BG65)","v":96},{"$f":"SUM(BH57:BH65)","v":24},null,{"$f":"SUM(BJ57:BJ65)","v":0},null,{"$f":"SUM(BL57:BL65)","v":32},{"$f":"SUM(BM57:BM65)","v":64},{"$f":"SUM(BN57:BN65)","v":64},{"$f":"SUM(BO57:BO65)","v":0},null,{"$f":"SUM(BQ57:BQ65)","v":0},null,{"$f":"SUM(BS57:BS65)","v":38},{"$f":"SUM(BT57:BT65)","v":76},{"$f":"SUM(BU57:BU65)","v":38},{"$f":"SUM(BV57:BV65)","v":38},null,{"$f":"SUM(BX57:BX65)","v":0},null,null,null,null,null,null,null,null,null,null,null,null,null,null,null,null,null,null,null,null,null,null,null,null,null,null,null,null,null,null,null,null,null,null,null,null,null,null,null,null,null,null,null,null,null,null,null,null,null,null,null,null,null,null,null,null,{"$f":"SUM(EC57:EC65)","v":440},{"$f":"SUM(ED57:ED65)","v":36}]
["МДК.02.01.","Педагогические основы преподавания творческих дисциплин: основы педагогики","гр",null,null,null,null,null,null,34,null,{"$f":"N57+P57","v":108},null,{"$f":"V57+AC57+AJ57+AQ57+AX57+BE57+BL57+BS57","v":36},null,{"$f":"W57+AD57+AK57+AR57+AY57+BF57+BM57+BT57","v":72},{"$f":"X57+AE57+AL57+AS57+AZ57+BG57+BN57+BU57","v":72},{"$f":"Y57+AF57+AM57+AT57+BA57+BH57+BO57+BV57","v":0},null,null,null,null,null,null,null,null,null,null,null,null,null,null,null,null,48,16,32,32,null,null,null,60,20,40,40,null,null,null,null,null,null,null,null,null,null,null,null,null,null,null,null,null,null,null,null,null,null,null,null,null,null,null,null,null,null,null,null,null,null,null,null,null,null,null,null,null,null,null,null,null,null,null,null,null,null,null,null,null,null,null,null,null,null,null,null,null,null,null,null,null,null,null,null,null,null,null,null,null,null,null,null,null,null,null,null,null,null,null,null,null,null,null,72]
[null,"Педагогические основы преподавания творческих дисциплин: основы системы музыкального образования","гр",6,null,null,null,null,null,5,null,{"$f":"N58+P58","v":108},null,{"$f":"V58+AC58+AJ58+AQ58+AX58+BE58+BL58+BS58","v":36},null,{"$f":"W58+AD58+AK58+AR58+AY58+BF58+BM58+BT58","v":72},{"$f":"X58+AE58+AL58+AS58+AZ58+BG58+BN58+BU58","v":72},{"$f":"Y58+AF58+AM58+AT58+BA58+BH58+BO58+BV58","v":0},null,null,null,null,null,null,null,null,null,null,null,null,null,null,null,null,null,null,null,null,null,null,null,null,null,null,null,null,null,null,48,16,32,32,null,null,null,60,20,40,40,null,null,null,null,null,null,null,null,null,null,null,null,null,null,null,null,null,null,null,null,null,null,null,null,null,null,null,null,null,null,null,null,null,null,null,null,null,null,null,null,null,null,null,null,null,null,null,null,null,null,null,null,null,null,null,null,null,null,null,null,null,null,null,null,null,null,null,null,null,null,null,null,null,72]
[null,"Педагогические основы преподавания творческих дисциплин: возрастная психология","гр",null,null,null,null,null,null,56,null,54,null,18,null,36,36,0,null,null,null,null,null,null,null,null,null,null,null,null,null,null,null,null,null,null,null,null,null,null,null,null,null,null,null,null,null,null,24,8,16,16,null,null,null,30,10,20,20,null,null,null,null,null,null,null,null,null,null,null,null,null,null,null,null,null,null,null,null,null,null,null,null,null,null,null,null,null,null,null,null,null,null,null,null,null,null,null,null,null,null,null,null,null,null,null,null,null,null,null,null,null,null,null,null,null,null,null,null,null,null,null,null,null,null,null,null,null,null,null,null,null,36]
[null,"Педагогические основы преподавания творческих ди сциплин: основы организации учебного процесса","гр",null,null,null,null,null,null,7,null,48,null,16,null,32,32,0,null,null,null,null,null,null,null,null,null,null,null,null,null,null,null,null,null,null,null,null,null,null,null,null,null,null,null,null,null,null,null,null,null,null,null,null,null,null,null,null,null,null,null,null,48,16,32,32,null,null,null,null,null,null,null,null,null,null,null,null,null,null,null,null,null,null,null,null,null,null,null,null,null,null,null,null,null,null,null,null,null,null,null,null,null,null,null,null,null,null,null,null,null,null,null,null,null,null,null,null,null,null,null,null,null,null,null,null,null,null,null,null,null,null,32]
[null,"Педагогические основы преподавания творческих дисциплин: основы психологии музыкального восприятия","гр",null,null,8,null,null,null,null,null,57,null,19,null,38,38,0,null,null,null,null,null,null,null,null,null,null,null,null,null,null,null,null,null,null,null,null,null,null,null,null,null,null,null,null,null,null,null,null,null,null,null,null,null,null,null,null,null,null,null,null,null,null,null,null,null,null,null,57,19,38,38,null,null,null,null,null,null,null,null,null,null,null,null,null,null,null,null,null,null,null,null,null,null,null,null,null,null,null,null,null,null,null,null,null,null,null,null,null,null,null,null,null,null,null,null,null,null,null,null,null,null,null,null,null,null,null,null,null,null,null,38]
["МДК.02.02.","Учебно-методическое обеспечение учебного процесса: методика обучения игре на инструменте","мг",null,null,null,null,null,null,56,null,156,null,52,null,104,94,10,null,null,null,null,null,null,null,null,null,null,null,null,null,null,null,null,null,null,null,null,null,null,null,null,null,null,null,null,null,null,96,32,64,58,6,null,null,60,20,40,36,4,null,null,null,null,null,null,null,null,null,null,null,null,null,null,null,null,null,null,null,null,null,null,null,null,null,null,null,null,null,null,null,null,null,null,null,null,null,null,null,null,null,null,null,null,null,null,null,null,null,null,null,null,null,null,null,null,null,null,null,null,null,null,null,null,null,null,null,null,null,null,null,null,104]
[null,"Учебно-методическое обеспечение учебного процесса: изучение методической литературы по вопросам педагогики и методики","инд",7,null,null,null,null,null,3,null,72,null,24,null,48,48,0,null,null,null,null,null,null,null,null,null,null,null,null,null,null,null,null,24,8,16,16,null,null,null,null,null,null,null,null,null,null,null,null,null,null,null,null,null,null,null,null,null,null,null,null,48,16,32,32,null,null,null,null,null,null,null,null,null,null,null,null,null,null,null,null,null,null,null,null,null,null,null,null,null,null,null,null,null,null,null,null,null,null,null,null,null,null,null,null,null,null,null,null,null,null,null,null,null,null,null,null,null,null,null,null,null,null,null,null,null,null,null,null,null,null,48]
[null,"Учебно- методическое обеспечение учебного процесса: физическая культура (ритмика)","гр",null,8,null,null,null,null,null,null,57,null,19,null,38,0,38,null,null,null,null,null,null,null,null,null,null,null,null,null,null,null,null,null,null,null,null,null,null,null,null,null,null,null,null,null,null,null,null,null,null,null,null,null,null,null,null,null,null,null,null,null,null,null,null,null,null,null,57,19,38,null,38,null,null,null,null,null,null,null,null,null,null,null,null,null,null,null,null,null,null,null,null,null,null,null,null,null,null,null,null,null,null,null,null,null,null,null,null,null,null,null,null,null,null,null,null,null,null,null,null,null,null,null,null,null,null,null,null,null,null,38]
[null,"Изучение репертуара ДШИ","инд",null,null,null,null,null,null,56,null,54,null,18,null,36,0,36,null,null,24,null,null,null,null,null,null,30,null,null,null,null,null,null,null,null,null,null,null,null,null,30,null,null,null,null,null,null,null,8,16,null,16,null,null,30,10,20,null,20,null,null,null,null,null,null,null,null,null,null,null,null,null,null,null,null,null,null,null,null,null,null,null,null,null,null,null,null,null,null,null,null,null,null,null,null,null,null,null,null,null,null,null,null,null,null,null,null,null,null,null,null,null,null,null,null,null,null,null,null,null,null,null,null,null,null,null,null,null,null,null,null,null,36]
["УП .00","Учебная практика",null,{"$f":"LEN(D67)+LEN(D68)+LEN(D69)+LEN(D70)+LEN(D71)","v":0},0,4,0,0,0,{"$f":"LEN(J67)+LEN(J68)+LEN(J69)+LEN(J70)+LEN(J71)","v":24},null,{"$f":"SUM(L67:L71)","v":1026},{"$f":"SUM(M67:M71)","v":0},342,0,684,0,684,null,null,72,{"$f":"SUM(V67:V71)","v":24},{"$f":"SUM(W67:W71)","v":48},{"$f":"SUM(X67:X71)","v":0},{"$f":"SUM(Y67:Y71)","v":48},null,{"$f":"SUM(AA67:AA71)","v":0},null,{"$f":"SUM(AC67:AC71)","v":30},{"$f":"SUM(AD67:AD71)","v":60},{"$f":"SUM(AE67:AE71)","v":0},{"$f":"SUM(AF67:AF71)","v":60},null,{"$f":"SUM(AH67:AH71)","v":0},null,{"$f":"SUM(AJ67:AJ71)","v":24},{"$f":"SUM(AK67:AK71)","v":48},{"$f":"SUM(AL67:AL71)","v":0},{"$f":"SUM(AM67:AM71)","v":48},null,{"$f":"SUM(AO67:AO71)","v":0},null,{"$f":"SUM(AQ67:AQ71)","v":30},{"$f":"SUM(AR67:AR71)","v":60},{"$f":"SUM(AS67:AS71)","v":0},{"$f":"SUM(AT67:AT71)","v":60},null,{"$f":"SUM(AV67:AV71)","v":0},null,{"$f":"SUM(AX67:AX71)","v":40},{"$f":"SUM(AY67:AY71)","v":80},{"$f":"SUM(AZ67:AZ71)","v":0},{"$f":"SUM(BA67:BA71)","v":80},null,{"$f":"SUM(BC67:BC71)","v":0},null,{"$f":"SUM(BE67:BE71)","v":70},{"$f":"SUM(BF67:BF71)","v":140},{"$f":"SUM(BG67:BG71)","v":0},{"$f":"SUM(BH67:BH71)","v":140},null,{"$f":"SUM(BJ67:BJ71)","v":0},null,{"$f":"SUM(BL67:BL71)","v":48},{"$f":"SUM(BM67:BM71)","v":96},{"$f":"SUM(BN67:BN71)","v":0},{"$f":"SUM(BO67:BO71)","v":96},null,{"$f":"SUM(BQ67:BQ71)","v":0},null,{"$f":"SUM(BS67:BS71)","v":76},{"$f":"SUM(BT67:BT71)","v":152},{"$f":"SUM(BU67:BU71)","v":0},{"$f":"SUM(BV67:BV71)","v":152},null,{"$f":"SUM(BX67:BX71)","v":0},null,null,null,null,null,null,null,null,null,null,null,null,null,null,null,null,null,null,null,null,null,null,null,null,null,null,null,null,null,null,null,null,null,null,null,null,null,null,null,null,null,null,null,null,null,null,null,null,null,null,null,null,null,null,null,null,{"$f":"SUM(EC67:EC71)","v":684},{"$f":"SUM(ED67:ED71)","v":0}]
["УП. 01","Концертмейстерская подготовка","инд",null,null,null,null,null,null,12345678,null,{"$f":"N67+P67","v":215},null,{"$f":"V67+AC67+AJ67+AQ67+AX67+BE67+BL67+BS67","v":72},null,{"$f":"W67+AD67+AK67+AR67+AY67+BF67+BM67+BT67","v":143},0,143,null,null,24,8,16,null,16,null,null,30,10,20,null,20,null,null,24,8,16,null,16,null,null,30,10,20,null,20,null,null,24,8,16,null,16,null,null,30,10,20,null,20,null,null,24,8,16,null,16,null,null,29,10,19,null,19,null,null,null,null,null,null,null,null,null,null,null,null,null,null,null,null,null,null,null,null,null,null,null,null,null,null,null,null,null,null,null,null,null,null,null,null,null,null,null,null,null,null,null,null,null,null,null,null,null,null,null,null,null,null,null,null,null,null,143]
["УП. 02","Фортепианный дуэт","мг",null,null,2,null,null,null,1,null,{"$f":"N68+P68","v":54},null,{"$f":"V68+AC68+AJ68+AQ68+AX68+BE68+BL68+BS68","v":18},null,36,0,36,null,null,24,8,16,null,16,null,null,30,10,20,null,20,null,null,null,null,null,null,null,null,null,null,null,null,null,null,null,null,null,null,null,null,null,null,null,null,null,null,null,null,null,null,null,null,null,null,null,null,null,null,null,null,null,null,null,null,null,null,null,null,null,null,null,null,null,null,null,null,null,null,null,null,null,null,null,null,null,null,null,null,null,null,null,null,null,null,null,null,null,null,null,null,null,null,null,null,null,null,null,null,null,null,null,null,null,null,null,null,null,null,null,null,36]
["УП. 03","Чтение с листа и транспозиция","инд",null,null,6,null,null,null,1234578,null,{"$f":"N69+P69","v":244},null,{"$f":"V69+AC69+AJ69+AQ69+AX69+BE69+BL69+BS69","v":81},null,163,0,163,null,null,24,8,16,null,16,null,null,30,10,20,null,20,null,null,24,8,16,null,16,null,null,30,10,20,null,20,null,null,24,8,16,null,16,null,null,60,20,40,null,40,null,null,24,8,16,null,16,null,null,29,9,19,null,19,null,null,null,null,null,null,null,null,null,null,null,null,null,null,null,null,null,null,null,null,null,null,null,null,null,null,null,null,null,null,null,null,null,null,null,null,null,null,null,null,null,null,null,null,null,null,null,null,null,null,null,null,null,null,null,null,null,null,163]
["УП. 04","Ансамблевое исполнительство","инд",null,null,5,null,null,null,34678,null,{"$f":"N70+P70","v":300},null,{"$f":"V70+AC70+AJ70+AQ70+AX70+BE70+BL70+BS70","v":100},null,200,0,200,null,null,null,null,null,null,null,null,null,null,null,null,null,null,null,null,24,8,16,null,16,null,null,30,10,20,null,20,null,null,24,8,16,null,16,null,null,60,20,40,null,40,null,null,48,16,32,null,32,null,null,114,38,76,null,76,null,null,null,null,null,null,null,null,null,null,null,null,null,null,null,null,null,null,null,null,null,null,null,null,null,null,null,null,null,null,null,null,null,null,null,null,null,null,null,null,null,null,null,null,null,null,null,null,null,null,null,null,null,null,null,null,null,null,200]
["УП. 05","Педагогическая работа","инд",null,null,6,null,null,null,578,null,{"$f":"N71+P71","v":213},null,{"$f":"V71+AC71+AJ71+AQ71+AX71+BE71+BL71+BS71","v":71},null,142,0,142,null,null,null,null,null,null,null,null,null,null,null,null,null,null,null,null,null,null,null,null,null,null,null,null,null,null,null,null,null,null,48,16,32,null,32,null,null,60,20,40,null,40,null,null,48,16,32,null,32,null,null,57,19,38,null,38,null,null,null,null,null,null,null,null,null,null,null,null,null,null,null,null,null,null,null,null,null,null,null,null,null,null,null,null,null,null,null,null,null,null,null,null,null,null,null,null,null,null,null,null,null,null,null,null,null,null,null,null,null,null,null,null,null,null,142]
["ПП","Производственная (по профилю специальности) практика",null,null,null,null,null,null,null,null,null,null,null,"час",null,{"$f":"P73+P74","v":180},"нед",{"$f":"R73+R74","v":5},null,null,null,null,{"$f":"SUM(W73:W76)","v":20},null,{"$f":"SUM(Y73:Y74)","v":20},null,null,null,null,{"$f":"SUM(AD73:AD74)","v":25},null,{"$f":"SUM(AF73:AF74)","v":25},null,null,null,null,{"$f":"SUM(AK73:AK74)","v":20},null,{"$f":"SUM(AM73:AM74)","v":20},null,null,null,null,{"$f":"SUM(AR73:AR74)","v":25},null,{"$f":"SUM(AT73:AT74)","v":25},null,null,null,null,{"$f":"SUM(AY73:AY74)","v":20},null,{"$f":"SUM(BA73:BA74)","v":20},null,null,null,null,{"$f":"SUM(BF73:BF74)","v":25},null,{"$f":"SUM(BH73:BH74)","v":25},null,null,null,null,{"$f":"SUM(BM73:BM74)","v":20},null,{"$f":"SUM(BO73:BO74)","v":20},null,null,null,null,{"$f":"SUM(BT73:BT74)","v":25},null,{"$f":"SUM(BV73:BV74)","v":25},null,null,"час",null,null,"нед",null,null,null,"час",null,null,"нед",null,null,null,"час",null,null,"нед",null,null,null,"час",null,null,"нед",null,null,null,"час",null,null,"нед",null,null,null,"час",null,null,"нед",null,null,null,"час",null,null,"нед",null,null,null,"час",null,null,"нед"]
["ПП.01","Исполнительская (по профилю специальности)",null,null,null,null,null,null,null,null,null,null,null,"час",null,{"$f":"W73+AD73+AK73+AR73+AY73+BF73+BM73+BT73","v":144},"нед",4,null,null,null,null,16,null,16,null,null,null,null,20,null,20,null,null,null,null,16,null,16,null,null,null,null,20,null,20,null,null,null,null,16,null,16,null,null,null,null,20,null,20,null,null,null,null,16,null,16,null,null,null,null,20,null,20]
["ПП.02","Педагогическая практика",null,null,null,null,null,null,null,null,null,null,null,"час",null,{"$f":"W74+AD74+AK74+AR74+AY74+BF74+BM74+BT74","v":36},"нед",1,null,null,null,null,4,null,4,null,null,null,null,5,null,5,null,null,null,null,4,null,4,null,null,null,null,5,null,5,null,null,null,null,4,null,4,null,null,null,null,5,null,5,null,null,null,null,4,null,4,null,null,null,null,5,null,5]
["ПДП.00","Преддипломная практика",null,null,null,null,null,null,null,null,null,null,null,"час",null,{"$f":"W75+AD75+AK75+AR75+AY75+BF75+BM75+BT75","v":36},"нед",1,null,null,null,null,null,null,null,null,null,null,null,null,null,null,null,null,null,null,null,null,null,null,null,null,null,null,null,null,null,null,null,null,null,null,null,null,null,null,null,null,null,null,null,null,null,null,16,null,null,null,null,null,null,20]
["ГИА.00","Государственная (итоговая) аттестация",null,null,null,null,null,null,null,null,null,null,null,null,null,null,"нед",4,null,null,null,null,null,null,null,null,null,null,null,null,null,null,null,null,null,null,null,null,null,null,null,null,null,null,null,null,null,null,null,null,null,null,null,null,null,null,null,null,null,null,null,null,null,null,null,null,null,null,null,null,null,null,"нед",4,null,null,null,null,null,"нед",null,null,null,null,null,null,"нед",null,null,null,null,null,null,"нед",null,null,null,null,null,null,"нед",null,null,null,null,null,null,"нед",null,null,null,null,null,null,"нед",null,null,null,null,null,null,"нед",null,null,null,null,null,null,"нед"]
["ГИА.01","Подготовка выпускной квалификационной работы",null,null,null,null,null,null,null,null,null,null,null,null,null,null,"нед",1,null,null,null,null,null,null,null,null,null,null,null,null,null,null,null,null,null,null,null,null,null,null,null,null,null,null,null,null,null,null,null,null,null,null,null,null,null,null,null,null,null,null,null,null,null,null,null,null,null,null,null,null,null,null,"нед",1,null,null,null,null,null,"нед",null,null,null,null,null,null,"нед",null,null,null,null,null,null,"нед",null,null,null,null,null,null,"нед",null,null,null,null,null,null,"нед",null,null,null,null,null,null,"нед",null,null,null,null,null,null,"нед",null,null,null,null,null,null,"нед"]
["ГИА.02","Защита выпускной квалификационной работы",null,null,null,null,null,null,null,null,null,null,null,null,null,null,"нед",1,null,null,null,null,null,null,null,null,null,null,null,null,null,null,null,null,null,null,null,null,null,null,null,null,null,null,null,null,null,null,null,null,null,null,null,null,null,null,null,null,null,null,null,null,null,null,null,null,null,null,null,null,null,null,"нед",1]
["ГИА.03","Государственный экзамен(по видам инструментов)",null,null,null,null,null,null,null,null,null,null,null,null,null,null,"нед",1,null,null,null,null,null,null,null,null,null,null,null,null,null,null,null,null,null,null,null,null,null,null,null,null,null,null,null,null,null,null,null,null,null,null,null,null,null,null,null,null,null,null,null,null,null,null,null,null,null,null,null,null,null,null,"нед",1,null,null,null,null,null,"нед",null,null,null,null,null,null,"нед",null,null,null,null,null,null,"нед",null,null,null,null,null,null,"нед",null,null,null,null,null,null,"нед",null,null,null,null,null,null,"нед",null,null,null,null,null,null,"нед",null,null,null,null,null,null,"нед"]
["ГИА.04","Государственный экзамен",null,null,null,null,null,null,null,null,null,null,null,null,null,null,"нед",1,null,null,null,null,null,null,null,null,null,null,null,null,null,null,null,null,null,null,null,null,null,null,null,null,null,null,null,null,null,null,null,null,null,null,null,null,null,null,null,null,null,null,null,null,null,null,null,null,null,null,null,null,null,null,"нед",1,null,null,null,null,null,"нед",null,null,null,null,null,null,"нед",null,null,null,null,null,null,"нед",null,null,null,null,null,null,"нед",null,null,null,null,null,null,"нед",null,null,null,null,null,null,"нед",null,null,null,null,null,null,"нед",null,null,null,null,null,null,"нед"]
[null,"ВСЕГО ПО ДИСЦИПЛИНАМ И МДК",null,28,8,24,{"$f":"G9+G27+G34+G44+G56+#REF!+G66","v":{"$error":"#REF!"}},{"$f":"H9+H27+H34+H44+H56+#REF!+H66","v":{"$error":"#REF!"}},{"$f":"I9+I27+I34+I44+I56+#REF!+I66","v":{"$error":"#REF!"}},103,null,7722,null,2574,null,5148,2569,2579,null,null,864,null,null,null,null,null,null,null,null,null,null,null,null,null,null,null,null,null,null,null,null,null,null,null,null,null,null,null,null,null,null,null,null,null,null,null,null,null,null,null,null,null,null,null,null,null,null,null,null,null,null,null,null,null,null,null,null,null,null,null,null,null,null,null,null,null,null,null,null,null,null,null,null,null,null,null,null,null,null,null,null,null,null,null,null,null,null,null,null,null,null,null,null,null,null,null,null,null,null,null,null,null,null,null,null,null,null,null,null,null,null,null,4572,576]
[null,"Экзаменов",null,null,null,null,null,null,null,null,null,null,null,null,null,null,null,null,null,null,1,null,null,{"$f":"SUM(IF(IFERROR(MID(D11:D16,SEARCH(1,D11:D16),1),0)=\"1\",1,0),IF(IFERROR(MID(D18:D25,SEARCH(1,D18:D25),1),0)=\"1\",1,0),IF(IFERROR(MID(D28:D32,SEARCH(1,D28:D32),1),0)=\"1\",1,0),IF(IFERROR(MID(D35:D42,SEARCH(1,D35:D42),1),0)=\"1\",1,0),IF(IFERROR(MID(D45:D52,SEARCH(1,D45:D52),1),0)=\"1\",1,0),IF(IFERROR(MID(D57:D65,SEARCH(1,D57:D65),1),0)=\"1\",1,0),IF(IFERROR(MID(#REF!,SEARCH(1,#REF!),1),0)=\"1\",1,0),IF(IFERROR(MID(D67:D71,SEARCH(1,D67:D71),1),0)=\"1\",1,0))","v":1},null,null,null,4,null,null,{"$f":"SUM(IF(IFERROR(MID(D11:D16,SEARCH(2,D11:D16),1),0)=\"2\",1,0),IF(IFERROR(MID(D18:D25,SEARCH(2,D18:D25),1),0)=\"2\",1,0),IF(IFERROR(MID(D28:D32,SEARCH(2,D28:D32),1),0)=\"2\",1,0),IF(IFERROR(MID(D35:D42,SEARCH(2,D35:D42),1),0)=\"2\",1,0),IF(IFERROR(MID(D45:D52,SEARCH(2,D45:D52),1),0)=\"2\",1,0),IF(IFERROR(MID(D57:D65,SEARCH(2,D57:D65),1),0)=\"2\",1,0),IF(IFERROR(MID(#REF!,SEARCH(2,#REF!),1),0)=\"2\",1,0),IF(IFERROR(MID(D67:D71,SEARCH(2,D67:D71),1),0)=\"2\",1,0))","v":5},null,null,null,1,null,null,{"$f":"SUM(IF(IFERROR(MID(D11:D16,SEARCH(3,D11:D16),1),0)=\"3\",1,0),IF(IFERROR(MID(D18:D25,SEARCH(3,D18:D25),1),0)=\"3\",1,0),IF(IFERROR(MID(D28:D32,SEARCH(3,D28:D32),1),0)=\"3\",1,0),IF(IFERROR(MID(D35:D42,SEARCH(3,D35:D42),1),0)=\"3\",1,0),IF(IFERROR(MID(D45:D52,SEARCH(3,D45:D52),1),0)=\"3\",1,0),IF(IFERROR(MID(D57:D65,SEARCH(3,D57:D65),1),0)=\"3\",1,0),IF(IFERROR(MID(#REF!,SEARCH(3,#REF!),1),0)=\"3\",1,0),IF(IFERROR(MID(D67:D71,SEARCH(3,D67:D71),1),0)=\"3\",1,0))","v":3},null,null,null,5,null,null,{"$f":"SUM(IF(IFERROR(MID(D11:D16,SEARCH(4,D11:D16),1),0)=\"4\",1,0),IF(IFERROR(MID(D18:D25,SEARCH(4,D18:D25),1),0)=\"4\",1,0),IF(IFERROR(MID(D28:D32,SEARCH(4,D28:D32),1),0)=\"4\",1,0),IF(IFERROR(MID(D35:D42,SEARCH(4,D35:D42),1),0)=\"4\",1,0),IF(IFERROR(MID(D45:D52,SEARCH(4,D45:D52),1),0)=\"4\",1,0),IF(IFERROR(MID(D57:D65,SEARCH(4,D57:D65),1),0)=\"4\",1,0),IF(IFERROR(MID(#REF!,SEARCH(4,#REF!),1),0)=\"4\",1,0),IF(IFERROR(MID(D67:D71,SEARCH(4,D67:D71),1),0)=\"4\",1,0))","v":5},null,null,null,1,null,null,{"$f":"SUM(IF(IFERROR(MID(D11:D16,SEARCH(5,D11:D16),1),0)=\"5\",1,0),IF(IFERROR(MID(D18:D25,SEARCH(5,D18:D25),1),0)=\"5\",1,0),IF(IFERROR(MID(D28:D32,SEARCH(5,D28:D32),1),0)=\"5\",1,0),IF(IFERROR(MID(D35:D42,SEARCH(5,D35:D42),1),0)=\"5\",1,0),IF(IFERROR(MID(D45:D52,SEARCH(5,D45:D52),1),0)=\"5\",1,0),IF(IFERROR(MID(D57:D65,SEARCH(5,D57:D65),1),0)=\"5\",1,0),IF(IFERROR(MID(#REF!,SEARCH(5,#REF!),1),0)=\"5\",1,0),IF(IFERROR(MID(D67:D71,SEARCH(5,D67:D71),1),0)=\"5\",1,0))","v":3},null,null,null,3,null,null,{"$f":"SUM(IF(IFERROR(MID(D11:D16,SEARCH(6,D11:D16),1),0)=\"6\",1,0),IF(IFERROR(MID(D18:D25,SEARCH(6,D18:D25),1),0)=\"6\",1,0),IF(IFERROR(MID(D28:D32,SEARCH(6,D28:D32),1),0)=\"6\",1,0),IF(IFERROR(MID(D35:D42,SEARCH(6,D35:D42),1),0)=\"6\",1,0),IF(IFERROR(MID(D45:D52,SEARCH(6,D45:D52),1),0)=\"6\",1,0),IF(IFERROR(MID(D57:D65,SEARCH(6,D57:D65),1),0)=\"6\",1,0),IF(IFERROR(MID(#REF!,SEARCH(6,#REF!),1),0)=\"6\",1,0),IF(IFERROR(MID(D67:D71,SEARCH(6,D67:D71),1),0)=\"6\",1,0))","v":4},null,null,null,2,null,null,{"$f":"SUM(IF(IFERROR(MID(D11:D16,SEARCH(7,D11:D16),1),0)=\"7\",1,0),IF(IFERROR(MID(D18:D25,SEARCH(7,D18:D25),1),0)=\"7\",1,0),IF(IFERROR(MID(D28:D32,SEARCH(7,D28:D32),1),0)=\"7\",1,0),IF(IFERROR(MID(D35:D42,SEARCH(7,D35:D42),1),0)=\"7\",1,0),IF(IFERROR(MID(D45:D52,SEARCH(7,D45:D52),1),0)=\"7\",1,0),IF(IFERROR(MID(D57:D65,SEARCH(7,D57:D65),1),0)=\"7\",1,0),IF(IFERROR(MID(#REF!,SEARCH(7,#REF!),1),0)=\"7\",1,0),IF(IFERROR(MID(D67:D71,SEARCH(7,D67:D71),1),0)=\"7\",1,0))","v":4},null,null,null,6,null,null,{"$f":"SUM(IF(IFERROR(MID(D11:D16,SEARCH(8,D11:D16),1),0)=\"8\",1,0),IF(IFERROR(MID(D18:D25,SEARCH(8,D18:D25),1),0)=\"8\",1,0),IF(IFERROR(MID(D28:D32,SEARCH(8,D28:D32),1),0)=\"8\",1,0),IF(IFERROR(MID(D35:D42,SEARCH(8,D35:D42),1),0)=\"8\",1,0),IF(IFERROR(MID(D45:D52,SEARCH(8,D45:D52),1),0)=\"8\",1,0),IF(IFERROR(MID(D57:D65,SEARCH(8,D57:D65),1),0)=\"8\",1,0),IF(IFERROR(MID(#REF!,SEARCH(8,#REF!),1),0)=\"8\",1,0),IF(IFERROR(MID(D67:D71,SEARCH(8,D67:D71),1),0)=\"8\",1,0))","v":3}]
[null,"Зачётов",null,null,null,null,null,null,null,null,null,null,null,null,null,null,null,null,null,null,1,null,null,{"$f":"SUM(IF(IFERROR(MID(E11:E16,SEARCH(1,E11:E16),1),0)=\"1\",1,0),IF(IFERROR(MID(E18:E25,SEARCH(1,E18:E25),1),0)=\"1\",1,0),IF(IFERROR(MID(E28:E32,SEARCH(1,E28:E32),1),0)=\"1\",1,0),IF(IFERROR(MID(E35:E42,SEARCH(1,E35:E42),1),0)=\"1\",1,0),IF(IFERROR(MID(E45:E52,SEARCH(1,E45:E52),1),0)=\"1\",1,0),IF(IFERROR(MID(E57:E65,SEARCH(1,E57:E65),1),0)=\"1\",1,0),IF(IFERROR(MID(#REF!,SEARCH(1,#REF!),1),0)=\"1\",1,0),IF(IFERROR(MID(E67:E71,SEARCH(1,E67:E71),1),0)=\"1\",1,0))","v":1},null,null,null,4,null,null,{"$f":"SUM(IF(IFERROR(MID(E11:E16,SEARCH(2,E11:E16),1),0)=\"2\",1,0),IF(IFERROR(MID(E18:E25,SEARCH(2,E18:E25),1),0)=\"2\",1,0),IF(IFERROR(MID(E28:E32,SEARCH(2,E28:E32),1),0)=\"2\",1,0),IF(IFERROR(MID(E35:E42,SEARCH(2,E35:E42),1),0)=\"2\",1,0),IF(IFERROR(MID(E45:E52,SEARCH(2,E45:E52),1),0)=\"2\",1,0),IF(IFERROR(MID(E57:E65,SEARCH(2,E57:E65),1),0)=\"2\",1,0),IF(IFERROR(MID(#REF!,SEARCH(2,#REF!),1),0)=\"2\",1,0),IF(IFERROR(MID(E67:E71,SEARCH(2,E67:E71),1),0)=\"2\",1,0))","v":1},null,null,null,1,null,null,{"$f":"SUM(IF(IFERROR(MID(E11:E16,SEARCH(3,E11:E16),1),0)=\"3\",1,0),IF(IFERROR(MID(E18:E25,SEARCH(3,E18:E25),1),0)=\"3\",1,0),IF(IFERROR(MID(E28:E32,SEARCH(3,E28:E32),1),0)=\"3\",1,0),IF(IFERROR(MID(E35:E42,SEARCH(3,E35:E42),1),0)=\"3\",1,0),IF(IFERROR(MID(E45:E52,SEARCH(3,E45:E52),1),0)=\"3\",1,0),IF(IFERROR(MID(E57:E65,SEARCH(3,E57:E65),1),0)=\"3\",1,0),IF(IFERROR(MID(#REF!,SEARCH(3,#REF!),1),0)=\"3\",1,0),IF(IFERROR(MID(E67:E71,SEARCH(3,E67:E71),1),0)=\"3\",1,0))","v":1},null,null,null,5,null,null,{"$f":"SUM(IF(IFERROR(MID(E11:E16,SEARCH(4,E11:E16),1),0)=\"4\",1,0),IF(IFERROR(MID(E18:E25,SEARCH(4,E18:E25),1),0)=\"4\",1,0),IF(IFERROR(MID(E28:E32,SEARCH(4,E28:E32),1),0)=\"4\",1,0),IF(IFERROR(MID(E35:E42,SEARCH(4,E35:E42),1),0)=\"4\",1,0),IF(IFERROR(MID(E45:E52,SEARCH(4,E45:E52),1),0)=\"4\",1,0),IF(IFERROR(MID(E57:E65,SEARCH(4,E57:E65),1),0)=\"4\",1,0),IF(IFERROR(MID(#REF!,SEARCH(4,#REF!),1),0)=\"4\",1,0),IF(IFERROR(MID(E67:E71,SEARCH(4,E67:E71),1),0)=\"4\",1,0))","v":1},null,null,null,1,null,null,{"$f":"SUM(IF(IFERROR(MID(E11:E16,SEARCH(5,E11:E16),1),0)=\"5\",1,0),IF(IFERROR(MID(E18:E25,SEARCH(5,E18:E25),1),0)=\"5\",1,0),IF(IFERROR(MID(E28:E32,SEARCH(5,E28:E32),1),0)=\"5\",1,0),IF(IFERROR(MID(E35:E42,SEARCH(5,E35:E42),1),0)=\"5\",1,0),IF(IFERROR(MID(E45:E52,SEARCH(5,E45:E52),1),0)=\"5\",1,0),IF(IFERROR(MID(E57:E65,SEARCH(5,E57:E65),1),0)=\"5\",1,0),IF(IFERROR(MID(#REF!,SEARCH(5,#REF!),1),0)=\"5\",1,0),IF(IFERROR(MID(E67:E71,SEARCH(5,E67:E71),1),0)=\"5\",1,0))","v":1},null,null,null,3,null,null,{"$f":"SUM(IF(IFERROR(MID(E11:E16,SEARCH(6,E11:E16),1),0)=\"6\",1,0),IF(IFERROR(MID(E18:E25,SEARCH(6,E18:E25),1),0)=\"6\",1,0),IF(IFERROR(MID(E28:E32,SEARCH(6,E28:E32),1),0)=\"6\",1,0),IF(IFERROR(MID(E35:E42,SEARCH(6,E35:E42),1),0)=\"6\",1,0),IF(IFERROR(MID(E45:E52,SEARCH(6,E45:E52),1),0)=\"6\",1,0),IF(IFERROR(MID(E57:E65,SEARCH(6,E57:E65),1),0)=\"6\",1,0),IF(IFERROR(MID(#REF!,SEARCH(6,#REF!),1),0)=\"6\",1,0),IF(IFERROR(MID(E67:E71,SEARCH(6,E67:E71),1),0)=\"6\",1,0))","v":1},null,null,null,2,null,null,{"$f":"SUM(IF(IFERROR(MID(E11:E16,SEARCH(7,E11:E16),1),0)=\"7\",1,0),IF(IFERROR(MID(E18:E25,SEARCH(7,E18:E25),1),0)=\"7\",1,0),IF(IFERROR(MID(E28:E32,SEARCH(7,E28:E32),1),0)=\"7\",1,0),IF(IFERROR(MID(E35:E42,SEARCH(7,E35:E42),1),0)=\"7\",1,0),IF(IFERROR(MID(E45:E52,SEARCH(7,E45:E52),1),0)=\"7\",1,0),IF(IFERROR(MID(E57:E65,SEARCH(7,E57:E65),1),0)=\"7\",1,0),IF(IFERROR(MID(#REF!,SEARCH(7,#REF!),1),0)=\"7\",1,0),IF(IFERROR(MID(E67:E71,SEARCH(7,E67:E71),1),0)=\"7\",1,0))","v":1},null,null,null,6,null,null,{"$f":"SUM(IF(IFERROR(MID(E11:E16,SEARCH(8,E11:E16),1),0)=\"8\",1,0),IF(IFERROR(MID(E18:E25,SEARCH(8,E18:E25),1),0)=\"8\",1,0),IF(IFERROR(MID(E28:E32,SEARCH(8,E28:E32),1),0)=\"8\",1,0),IF(IFERROR(MID(E35:E42,SEARCH(8,E35:E42),1),0)=\"8\",1,0),IF(IFERROR(MID(E45:E52,SEARCH(8,E45:E52),1),0)=\"8\",1,0),IF(IFERROR(MID(E57:E65,SEARCH(8,E57:E65),1),0)=\"8\",1,0),IF(IFERROR(MID(#REF!,SEARCH(8,#REF!),1),0)=\"8\",1,0),IF(IFERROR(MID(E67:E71,SEARCH(8,E67:E71),1),0)=\"8\",1,0))","v":1}]
[null,"Дифференицрованных зачётов",null,null,null,null,null,null,null,null,null,null,null,null,null,null,null,null,null,null,1,null,null,{"$f":"SUM(IF(IFERROR(MID(F11:F16,SEARCH(1,F11:F16),1),0)=\"1\",1,0),IF(IFERROR(MID(F18:F25,SEARCH(1,F18:F25),1),0)=\"1\",1,0),IF(IFERROR(MID(F28:I32,SEARCH(1,F28:I32),1),0)=\"1\",1,0),IF(IFERROR(MID(F35:F42,SEARCH(1,F35:F42),1),0)=\"1\",1,0),IF(IFERROR(MID(F45:F52,SEARCH(1,F45:I52),1),0)=\"1\",1,0),IF(IFERROR(MID(F57:F65,SEARCH(1,F57:G65),1),0)=\"1\",1,0),IF(IFERROR(MID(#REF!,SEARCH(1,#REF!),1),0)=\"1\",1,0),IF(IFERROR(MID(F67:F71,SEARCH(1,F67:F71),1),0)=\"1\",1,0))","v":2},null,null,null,4,null,null,{"$f":"SUM(IF(IFERROR(MID(F11:F16,SEARCH(2,F11:F16),1),0)=\"2\",1,0),IF(IFERROR(MID(F18:F25,SEARCH(2,F18:F25),1),0)=\"2\",1,0),IF(IFERROR(MID(F28:H32,SEARCH(2,F28:I32),1),0)=\"2\",1,0),IF(IFERROR(MID(F35:F42,SEARCH(2,F35:F42),1),0)=\"2\",1,0),IF(IFERROR(MID(F45:I52,SEARCH(2,F45:F52),1),0)=\"2\",1,0),IF(IFERROR(MID(F57:F65,SEARCH(2,F57:F65),1),0)=\"2\",1,0),IF(IFERROR(MID(#REF!,SEARCH(2,#REF!),1),0)=\"2\",1,0),IF(IFERROR(MID(F67:F71,SEARCH(2,F67:F71),1),0)=\"2\",1,0))","v":3},null,null,null,1,null,null,{"$f":"SUM(IF(IFERROR(MID(F11:F16,SEARCH(3,F11:F16),1),0)=\"3\",1,0),IF(IFERROR(MID(F18:F25,SEARCH(3,F18:F25),1),0)=\"3\",1,0),IF(IFERROR(MID(F28:H32,SEARCH(3,F28:F32),1),0)=\"3\",1,0),IF(IFERROR(MID(F35:F42,SEARCH(3,F35:F42),1),0)=\"3\",1,0),IF(IFERROR(MID(F45:I52,SEARCH(3,F45:F52),1),0)=\"3\",1,0),IF(IFERROR(MID(F57:F65,SEARCH(3,F57:F65),1),0)=\"3\",1,0),IF(IFERROR(MID(#REF!,SEARCH(3,#REF!),1),0)=\"3\",1,0),IF(IFERROR(MID(F67:F71,SEARCH(3,F67:F71),1),0)=\"3\",1,0))","v":1},null,null,null,5,null,null,6,null,null,null,1,null,null,{"$f":"SUM(IF(IFERROR(MID(F11:F16,SEARCH(5,F11:F16),1),0)=\"5\",1,0),IF(IFERROR(MID(F18:F25,SEARCH(5,F18:F25),1),0)=\"5\",1,0),IF(IFERROR(MID(F28:F32,SEARCH(5,F28:F32),1),0)=\"5\",1,0),IF(IFERROR(MID(F35:F42,SEARCH(5,F35:F42),1),0)=\"5\",1,0),IF(IFERROR(MID(F45:F52,SEARCH(5,F45:F52),1),0)=\"5\",1,0),IF(IFERROR(MID(F57:F65,SEARCH(5,F57:F65),1),0)=\"5\",1,0),IF(IFERROR(MID(#REF!,SEARCH(5,#REF!),1),0)=\"5\",1,0),IF(IFERROR(MID(F67:F71,SEARCH(5,F67:F71),1),0)=\"5\",1,0))","v":2},null,null,null,3,null,null,{"$f":"SUM(IF(IFERROR(MID(F11:F16,SEARCH(6,F11:F16),1),0)=\"6\",1,0),IF(IFERROR(MID(F18:F25,SEARCH(6,F18:F25),1),0)=\"6\",1,0),IF(IFERROR(MID(F28:F32,SEARCH(6,F28:F32),1),0)=\"6\",1,0),IF(IFERROR(MID(F35:F42,SEARCH(6,F35:F42),1),0)=\"6\",1,0),IF(IFERROR(MID(F45:I52,SEARCH(6,F45:F52),1),0)=\"6\",1,0),IF(IFERROR(MID(F57:F65,SEARCH(6,F57:F65),1),0)=\"6\",1,0),IF(IFERROR(MID(#REF!,SEARCH(6,#REF!),1),0)=\"6\",1,0),IF(IFERROR(MID(F67:F71,SEARCH(6,F67:F71),1),0)=\"6\",1,0))","v":3},null,null,null,2,null,null,{"$f":"SUM(IF(IFERROR(MID(F11:F16,SEARCH(7,F11:F16),1),0)=\"7\",1,0),IF(IFERROR(MID(F18:F25,SEARCH(7,F18:F25),1),0)=\"7\",1,0),IF(IFERROR(MID(F28:F32,SEARCH(7,F28:F32),1),0)=\"7\",1,0),IF(IFERROR(MID(F35:F42,SEARCH(7,F35:F42),1),0)=\"7\",1,0),IF(IFERROR(MID(F45:F52,SEARCH(7,F45:I52),1),0)=\"7\",1,0),IF(IFERROR(MID(F57:F65,SEARCH(7,F57:F65),1),0)=\"7\",1,0),IF(IFERROR(MID(#REF!,SEARCH(7,#REF!),1),0)=\"7\",1,0),IF(IFERROR(MID(F67:F71,SEARCH(7,F67:F71),1),0)=\"7\",1,0))","v":2},null,null,null,6,null,null,{"$f":"SUM(IF(IFERROR(MID(F11:F16,SEARCH(8,F11:F16),1),0)=\"8\",1,0),IF(IFERROR(MID(F18:F25,SEARCH(8,F18:F25),1),0)=\"8\",1,0),IF(IFERROR(MID(F28:F32,SEARCH(8,F28:F32),1),0)=\"8\",1,0),IF(IFERROR(MID(F35:F42,SEARCH(8,F35:F42),1),0)=\"8\",1,0),IF(IFERROR(MID(F45:F52,SEARCH(8,F45:I52),1),0)=\"8\",1,0),IF(IFERROR(MID(F57:F65,SEARCH(8,F57:F65),1),0)=\"8\",1,0),IF(IFERROR(MID(#REF!,SEARCH(8,#REF!),1),0)=\"8\",1,0),IF(IFERROR(MID(F67:F71,SEARCH(8,F67:F71),1),0)=\"8\",1,0))","v":5}]
[null,"Контрольных работ (итоговые письм. классные)"]
[null,"Контрольных работ (домашние)"]

{"sheet":"Кабинеты","index":3,"n_rows":15,"n_cols":3,"rows_kept":15,"cut":false,"hidden":false,"merged":[]}
[null,"№","Наименование"]
[null,"1","Кабинеты:  русского языка и литературы"]
[null,"2","математики и информатики;"]
[null,"3","истории, географии и обществознания;"]
[null,"4","гуманитарных и социально-экономических дисциплин;"]
[null,5,"мировой художественной культуры;"]
[null,6,"музыкально-теоретических дисциплин;"]
[null,7,"музыкальной литературы."]
[null,8,"Учебные классы:  для групповых и индивидуальных занятий;"]
[null,9,"для проведения оркестровых и ансамблевых занятий;"]
[null,10,"для занятий по междисциплинарному курсу «Оркестровый класс, изучение родственных инструментов» со специализированным оборудованием;"]
[null,11,"для занятий по междисциплинарному курсу «Дирижирование и чтение оркестровых партитур», оснащенные зеркалами и двумя роялями."]
[null,12,"Спортивный комплекс: спортивный зал; место для стрельбы.  "]
[null,13,"Залы:  концертный зал от 100 посадочных мест с концертными роялями, пультами и звукотехническим оборудованием;   малый концертный зал от 30 посадочных мест с концертным роялем"]
[null,14,"библиотека,читальный зал с выходом в интернет"]

{"sheet":"Start","index":4,"n_rows":0,"n_cols":0,"rows_kept":0,"cut":false,"hidden":true,"merged":[]}